Workbook

Sheet comunidades (hidden)
A1: Autonomia | B1: Provincia
A2: Andalucía | B2: Almería
A3: Andalucía | B3: Cádiz
A4: Andalucía | B4: Córdoba
A5: Andalucía | B5: Granada
A6: Andalucía | B6: Huelva
A7: Andalucía | B7: Jaén
A8: Andalucía | B8: Málaga
A9: Andalucía | B9: Sevilla
A10: Aragón | B10: Huesca
A11: Aragón | B11: Teruel
A12: Aragón | B12: Zaragoza
A13: Asturias | B13: Asturias
A14: Cantabria | B14: Cantabria
A15: Castilla y León | B15: Ávila
A16: Castilla y León | B16: Burgos
A17: Castilla y León | B17: León
A18: Castilla y León | B18: Palencia
A19: Castilla y León | B19: Salamanca
A20: Castilla y León | B20: Segovia
A21: Castilla y León | B21: Soria
A22: Castilla y León | B22: Valladolid
A23: Castilla y León | B23: Zamora
A24: Castilla-La Mancha | B24: Albacete
A25: Castilla-La Mancha | B25: Ciudad Real
A26: Castilla-La Mancha | B26: Cuenca
A27: Castilla-La Mancha | B27: Guadalajara
A28: Castilla-La Mancha | B28: Toledo
A29: Cataluña | B29: Barcelona
A30: Cataluña | B30: Gerona
A31: Cataluña | B31: Lérida
A32: Cataluña | B32: Tarragona
A33: Extremadura | B33: Badajoz
A34: Extremadura | B34: Cáceres
A35: Galicia | B35: La Coruña
A36: Galicia | B36: Lugo
A37: Galicia | B37: Orense
A38: Galicia | B38: Pontevedra
A39: Islas Baleares | B39: Islas Baleares
A40: Islas Canarias | B40: Santa Cruz de Tenerife
A41: Islas Canarias | B41: Las Palmas
A42: La Rioja | B42: La Rioja
A43: Madrid | B43: Madrid
A44: Murcia | B44: Murcia
A45: Navarra | B45: Navarra
A46: País Vasco | B46: Álava
A47: País Vasco | B47: Guipúzcoa
A48: País Vasco | B48: Vizcaya
A49: Valencia | B49: Alicante
A50: Valencia | B50: Castellón
A51: Valencia | B51: Valencia

Sheet codigos (hidden)
A1: PROVINCIAS | E1: ZONAS
A2: Código | C2: Provincia | D2: DGT | E2: zona | F2: provin2
A3: 01 | B3: 1 | C3: Alava | D3: NORTE | E3: 01 ALAVA | F3: Alava
A4: 02 | B4: 2 | C4: Albacete | D4: ESTE | E4: 02 ALBACETE | F4: Albacete
A5: 03 | B5: 3 | C5: Alicante | D5: ESTE | E5: 03 ALICANTE | F5: Alicante
A6: 04 | B6: 4 | C6: Almeria | D6: SUR | E6: 04 ALMERIA | F6: Almeria
A7: 05 | B7: 5 | C7: Avila | D7: CENTRO | E7: 05 AVILA | F7: Avila
A8: 06 | B8: 6 | C8: Badajoz | D8: SUROESTE | E8: 06 BADAJOZ | F8: Badajoz
A9: 07 | B9: 7 | C9: Baleares | D9: MADRID-BALEARES | E9: 07 BALEARES | F9: Baleares
A10: 08 | B10: 8 | C10: Barcelona | D10: CATALUÑA | E10: 08 BARCELONA | F10: Barcelona
A11: 09 | B11: 9 | C11: Burgos | D11: CENTRO | E11: 09 BURGOS | F11: Burgos
A12: 10 | B12: 10 | C12: Caceres | D12: SUROESTE | E12: 10 CACERES | F12: Caceres
A13: 11 | B13: 11 | C13: Cadiz | D13: SUROESTE | E13: 101 MONDRAGON GUIPUZCOA | F13: Vizcaya
A14: 12 | B14: 12 | C14: Castellon | D14: ESTE | E14: 102 MONDRAGON VIZCAYA | F14: Vizcaya
A15: 13 | B15: 13 | C15: Ciudad Real | D15: CENTRO | E15: 104 ORDUÑA | F15: Lugo
A16: 14 | B16: 14 | C16: Cordoba | D16: SUR | E16: 105 RIBADEO-VIVERO NUEVO 33 | F16: Lugo
A17: 15 | B17: 15 | C17: La Coruña | D17: NOROESTE | E17: 106 RIBADEO-VIVERO NUEVO 27 | F17: Lugo
A18: 16 | B18: 16 | C18: Cuenca | D18: ESTE | E18: 107 LANZAROTE | F18: Gran Canaria
A19: 17 | B19: 17 | C19: Gerona | D19: CATALUÑA | E19: 108 LA PALMA | F19: Gran Canaria
A20: 18 | B20: 18 | C20: Granada | D20: SUR | E20: 109 GOMERA | F20: Gran Canaria
A21: 19 | B21: 19 | C21: Guadalajara | D21: CENTRO | E21: 11 CADIZ | F21: Cadiz
A22: 20 | B22: 20 | C22: Guipuzcoa | D22: NORTE | E22: 110 HIERRO | F22: Tenerife
A23: 21 | B23: 21 | C23: Huelva | D23: SUROESTE | E23: 111 FUERTEVENTURA | F23: Tenerife
A24: 22 | B24: 22 | C24: Huesca | D24: NORTE | E24: 114 BARCELONA (CAT II 10/05/05) | F24: Barcelona
A25: 23 | B25: 23 | C25: Jaen | D25: SUR | E25: 116 FORMENTERA (01-01-06) | F25: Baleares
A26: 24 | B26: 24 | C26: Leon | D26: CENTRO | E26: 118 MENORCA 10/01/2006 | F26: Baleares
A27: 25 | B27: 25 | C27: Lerida | D27: CATALUÑA | E27: 119 BARCELONA CAT II (05-04-06) | F27: Barcelona
A28: 26 | B28: 26 | C28: Logroño | D28: NORTE | E28: 12 CASTELLON | F28: Castellon
A29: 27 | B29: 27 | C29: Lugo | D29: NOROESTE | E29: 120 SAN NICOLAS | F29: Tenerife
A30: 28 | B30: 28 | C30: Madrid | D30: MADRID-BALEARES | E30: 121 IBIZA | F30: Baleares
A31: 29 | B31: 29 | C31: Malaga | D31: SUR | E31: 122 MONDRAGON GUIPUZCOA 01/2009 | F31: Guipuzcoa
A32: 30 | B32: 30 | C32: Murcia | D32: ESTE | E32: 123 RIBADEO-VIVERO 27 (2010) | F32: Lugo
A33: 31 | B33: 31 | C33: Navarra | D33: NORTE | E33: 124 SIERRA DE HUELVA | F33: Huelva
A34: 32 | B34: 32 | C34: Orense | D34: NOROESTE | E34: 125 SIERRA DE HUELVA (HUELVA) | F34: Huelva
A35: 33 | B35: 33 | C35: Asturias | D35: NOROESTE | E35: 126 SIERRA DE HUELVA (BADAJOZ) | F35: Badajoz
A36: 34 | B36: 34 | C36: Palencia | D36: CENTRO | E36: 128 SEVILLA CAPITAL | F36: Sevilla
A37: 35 | B37: 35 | C37: Gran Canaria | D37: CANARIAS | E37: 13 CIUDAD REAL | F37: Ciudad Real
A38: 36 | B38: 36 | C38: Pontevedra | D38: NOROESTE | E38: 14 CORDOBA | F38: Cordoba
A39: 37 | B39: 37 | C39: Salamanca | D39: CENTRO | E39: 15 LA CORUÑA | F39: La Coruña
A40: 38 | B40: 38 | C40: Tenerife | D40: CANARIAS | E40: 16 CUENCA | F40: Cuenca
A41: 39 | B41: 39 | C41: Cantabria | D41: NOROESTE | E41: 17 GERONA | F41: Gerona
A42: 40 | B42: 40 | C42: Segovia | D42: CENTRO | E42: 18 GRANADA | F42: Granada
A43: 41 | B43: 41 | C43: Sevilla | D43: SUROESTE | E43: 19 GUADALAJARA | F43: Guadalajara
A44: 42 | B44: 42 | C44: Soria | D44: CENTRO | E44: 20 GUIPUZCOA | F44: Guipuzcoa
A45: 43 | B45: 43 | C45: Tarragona | D45: CATALUÑA | E45: 21 HUELVA | F45: Huelva
A46: 44 | B46: 44 | C46: Teruel | D46: NORTE | E46: 22 HUESCA | F46: Huesca
A47: 45 | B47: 45 | C47: Toledo | D47: CENTRO | E47: 23 JAEN | F47: Jaen
A48: 46 | B48: 46 | C48: Valencia | D48: ESTE | E48: 24 LEON | F48: Leon
A49: 47 | B49: 47 | C49: Valladolid | D49: CENTRO | E49: 25 LERIDA | F49: Lerida
A50: 48 | B50: 48 | C50: Vizcaya | D50: NORTE | E50: 26 Logroño | F50: Logroño
A51: 49 | B51: 49 | C51: Zamora | D51: CENTRO | E51: 27 LUGO | F51: Lugo
A52: 50 | B52: 50 | C52: Zaragoza | D52: NORTE | E52: 28 MADRID | F52: Madrid
A53: 51 | B53: 51 | C53: Ceuta | D53: SUROESTE | E53: 29 MALAGA | F53: Malaga
A54: 52 | B54: 52 | C54: Melilla | D54: SUROESTE | E54: 30 MURCIA | F54: Murcia
E55: 31 NAVARRA | F55: Navarra
E56: 32 ORENSE | F56: Orense
E57: 33 ASTURIAS | F57: Asturias
E58: 34 PALENCIA | F58: Palencia
E59: 35 GRAN CANARIA | F59: Gran Canaria
E60: 36 PONTEVEDRA | F60: Pontevedra
E61: 37 SALAMANCA | F61: Salamanca
E62: 38 TENERIFE | F62: Tenerife
E63: 39 CANTABRIA | F63: Cantabria
E64: 40 SEGOVIA | F64: Segovia
E65: 41 SEVILLA | F65: Sevilla
E66: 42 SORIA | F66: Soria
E67: 43 TARRAGONA | F67: Tarragona
E68: 44 TERUEL | F68: Teruel
E69: 45 TOLEDO | F69: Toledo
E70: 46 VALENCIA | F70: Valencia
E71: 47 VALLADOLID | F71: Valladolid
E72: 48 VIZCAYA | F72: Vizcaya
E73: 49 ZAMORA | F73: Zamora
E74: 50 ZARAGOZA | F74: Zaragoza
E75: 51 CEUTA | F75: Ceuta
E76: 52 MELILLA | F76: Melilla
E77: 66 SAGUNTO | F77: Valencia
E78: 89 MONDRAGON (GUIPUZCOA) | F78: Guipuzcoa
E79: 92 BAJO ARAGON | F79: Teruel
E80: 93 RINCON ADEMUZ | F80: Valencia
E81: 127 REINOSA | F81: Cantabria
E82: 129 MONTEQUINTO | F82: Sevilla
E83: 130 TESORILLO CADIZ | F83: Cadiz
E84: 131 TESORILLO MALAGA | F84: Malaga
E85: 132 REINOSA Y LIEBANA | F85: Cantabria
E86: 133 YECLA Y JUMILLA | F86: Murcia
E87: 134 REINOSA NUEVA | F87: Cantabria
E88: 135 SIERRA DE HUELVA (HUELVA) 01/01/2013 | F88: Huelva

Sheet Simulación (hidden)
A1: 1 | B1: 2 | C1: 5 | D1: 6 | E1: 7 | F1: 8 | G1: 9 | H1: 10 | I1: 11 | J1: 12 | K1: 13 | L1: 14 | M1: 15 | N1: 16 | O1: 17 | P1: 18 | Q1: 19 | R1: 20 | S1: 21 | T1: 22 | U1: 23 | V1: 24 | W1: 25 | X1: 26 | Y1: 27 | Z1: 28
C2: SINCO mayores de 30 años | O2: Total de la nueva producción | AB2: Octubre - Diciembre
C3: Enero | D3: Febrero | E3: Marzo | F3: Abril | G3: Mayo | H3: Junio | I3: Julio | J3: Agosto | K3: Septiembre | L3: Octubre | M3: Noviembre | N3: Diciembre | O3: Enero | P3: Febrero | Q3: Marzo | R3: Abril | S3: Mayo | T3: Junio | U3: Julio | V3: Agosto | W3: Septiembre | X3: Octubre | Y3: Noviembre | Z3: Diciembre | AB3: Mayores de 30 años
A5: ALAVA | C5: 44520.13004 | D5: 40117.85761 | E5: 62433.84 | F5: 48649.9158 | G5: 41320.14255 | H5: 36858.20917 | I5: 52025.0636 | J5: 25224.86336 | K5: 35689.69774 | L5: 52484.38742 | M5: 44882.96426 | N5: 56351.17024 | O5: 122155.5317 | P5: 155879.6939 | Q5: 146332.9653 | R5: 120476.2821 | S5: 125823.8504 | T5: 121861.0304 | U5: 151140.2963 | V5: 100024.0922 | W5: 97445.98102 | X5: 116738.9795 | Y5: 104910.3122 | Z5: 125681.1776 | AB5: =+L5+M5+N5 -> 153718.5219
A6: ALBACETE | C6: 100545.3303 | D6: 105241.6341 | E6: 129389.3696 | F6: 105297.3838 | G6: 115624.3908 | H6: 122066.7821 | I6: 112564.0068 | J6: 96456.67526 | K6: 86426.37236 | L6: 130175.993 | M6: 133377.2657 | N6: 145833.1912 | O6: 336081.764 | P6: 295119.191 | Q6: 305473.3527 | R6: 257848.7619 | S6: 281652.7899 | T6: 270881.593 | U6: 348559.2344 | V6: 251238.738 | W6: 215570.2589 | X6: 297434.9114 | Y6: 258146.9369 | Z6: 281275.2851 | AB6: =+L6+M6+N6 -> 409386.4499
A7: ALICANTE | C7: 369865.3349 | D7: 418439.9276 | E7: 477762.7956 | F7: 416612.7376 | G7: 423891.5383 | H7: 461573.2268 | I7: 431598.8294 | J7: 305500.3135 | K7: 291286.7866 | L7: 458642.7918 | M7: 445508.5857 | N7: 470048.5893 | O7: 1547629.955 | P7: 1299160.275 | Q7: 2734974.82 | R7: 1472730.173 | S7: 1570514.148 | T7: 1593995.062 | U7: 1570259.178 | V7: 902300.3581 | W7: 790921.1885 | X7: 896662.6004 | Y7: 863050.8167 | Z7: 900299.3227 | AB7: 1374199.967
A8: ALMERIA | C8: 336963.5394 | D8: 408020.571 | E8: 504620.3221 | F8: 368854.3053 | G8: 402936.3258 | H8: 366731.0403 | I8: 379984.2324 | J8: 290380.0931 | K8: 249054.238 | L8: 366237.966 | M8: 355739.5589 | N8: 380701.2104 | O8: 808781.1887 | P8: 891559.2305 | Q8: 1079907.904 | R8: 928366.8596 | S8: 966258.5855 | T8: 1018130.938 | U8: 949663.1758 | V8: 790740.858 | W8: 689578.1024 | X8: 852817.564 | Y8: 785261.2026 | Z8: 788784.5481 | AB8: 1102678.735
A9: AVILA | C9: 40596.7443 | D9: 39427.45353 | E9: 49740.39584 | F9: 41293.16639 | G9: 46006.18415 | H9: 44682.17861 | I9: 52619.25512 | J9: 36944.49508 | K9: 36476.71202 | L9: 46471.2398 | M9: 46788.37746 | N9: 43294.25795 | O9: 126833.6208 | P9: 115447.0503 | Q9: 141884.9937 | R9: 116378.1625 | S9: 142726.9541 | T9: 155450.4735 | U9: 134294.5528 | V9: 123781.3712 | W9: 97477.96214 | X9: 147617.5187 | Y9: 144978.6236 | Z9: 135269.3083 | AB9: 136553.8752
A10: BADAJOZ | C10: 176198.1357 | D10: 196603.3507 | E10: 280515.3332 | F10: 218007.3436 | G10: 217155.3367 | H10: 191600.4935 | I10: 234033.4236 | J10: 184384.1056 | K10: 145964.3472 | L10: 235019.0899 | M10: 226982.2504 | N10: 266308.0063 | O10: 596667.2229 | P10: 572203.1299 | Q10: 957638.2912 | R10: 557028.3564 | S10: 625200.9284 | T10: 702355.6855 | U10: 687730.1815 | V10: 575419.6111 | W10: 470197.9436 | X10: 601230.9096 | Y10: 590827.7315 | Z10: 616200.1991 | AB10: 728309.3466
A11: BALEARES | C11: 149991.0947 | D11: 197230.9162 | E11: 225774.6633 | F11: 197608.5312 | G11: 192062.6289 | H11: 242632.6231 | I11: 243274.6501 | J11: 146549.3275 | K11: 131413.1361 | L11: 172586.8579 | M11: 155506.3568 | N11: 151093.2221 | O11: 746634.3393 | P11: 854801.3989 | Q11: 2501350.225 | R11: 1264784.598 | S11: 1579135.213 | T11: 1166834.612 | U11: 1208379.827 | V11: 722030.2473 | W11: 477697.9513 | X11: 422319.2408 | Y11: 398094.3741 | Z11: 370068.7045 | AB11: 479186.4367
A12: BARCELONA | C12: 1572406.702 | D12: 1543803.518 | E12: 2018644.321 | F12: 1610345.661 | G12: 1583913.656 | H12: 1684064.563 | I12: 1670472.442 | J12: 968923.1502 | K12: 925832.4309 | L12: 1240903.532 | M12: 1125587.599 | N12: 1212999 | O12: 3799488.865 | P12: 4005547.301 | Q12: 4307054.139 | R12: 3458014.23 | S12: 3687101.07 | T12: 3944129.071 | U12: 4250742.501 | V12: 2523241.028 | W12: 2387818.411 | X12: 2653549.671 | Y12: 2533808.06 | Z12: 2559697.948 | AB12: 3579490.132
A13: BURGOS | C13: 66909.62444 | D13: 61183.63888 | E13: 80524.62594 | F13: 66648.62994 | G13: 71926.45719 | H13: 75005.17134 | I13: 79852.22876 | J13: 62229.31217 | K13: 57657.30798 | L13: 78179.8906 | M13: 71069.63816 | N13: 65499.79944 | O13: 309443.9338 | P13: 190408.9605 | Q13: 220876.8018 | R13: 192154.3006 | S13: 225891.4487 | T13: 252500.096 | U13: 242672.6327 | V13: 171273.4896 | W13: 137086.1088 | X13: 160635.4422 | Y13: 145506.4514 | Z13: 151268.0209 | AB13: 214749.3282
A14: CACERES | C14: 112707.8883 | D14: 124748.7481 | E14: 159344.6833 | F14: 141239.2021 | G14: 133096.8103 | H14: 129705.6646 | I14: 127000.3029 | J14: 98636.24038 | K14: 87038.32199 | L14: 131194.8033 | M14: 123702.6239 | N14: 132925.5577 | O14: 320076.9605 | P14: 338162.0032 | Q14: 369832.5133 | R14: 317490.0052 | S14: 337484.7629 | T14: 352902.4321 | U14: 356809.7716 | V14: 304294.4855 | W14: 270533.1801 | X14: 346546.9846 | Y14: 318914.9462 | Z14: 341942.4109 | AB14: 387822.9848
A15: CADIZ | C15: 407785.4473 | D15: 371133.7643 | E15: 521926.3395 | F15: 471266.0679 | G15: 446725.6965 | H15: 498769.7858 | I15: 465174.3916 | J15: 429971.3757 | K15: 339007.158 | L15: 468047.1297 | M15: 484496.6795 | N15: 484728.754 | O15: 1083530.729 | P15: 994057.8693 | Q15: 1191524.046 | R15: 1045081.951 | S15: 1141735.42 | T15: 1218032.357 | U15: 1144096.057 | V15: 1102180.01 | W15: 894483.6807 | X15: 911761.7262 | Y15: 964072.0162 | Z15: 908291.5969 | AB15: 1437272.563
A16: CASTELLON | C16: 162765.1091 | D16: 188003.6896 | E16: 197811.8586 | F16: 169266.9661 | G16: 194100.177 | H16: 219453.9579 | I16: 204382.2436 | J16: 170390.46 | K16: 132516.5369 | L16: 239411.8512 | M16: 178868.7754 | N16: 217862.6771 | O16: 445938.3044 | P16: 1137512.241 | Q16: 2590691.394 | R16: 1029776.012 | S16: 1250295.156 | T16: 2336897.713 | U16: 961770.1407 | V16: 453114.1734 | W16: 416050.3989 | X16: 538769.2478 | Y16: 424001.7785 | Z16: 458728.093 | AB16: 636143.3038
A17: CIUDAD REAL | C17: 130720.0756 | D17: 127206.5547 | E17: 169530.6394 | F17: 136848.0183 | G17: 144955.1399 | H17: 154883.9736 | I17: 159062.4281 | J17: 126259.2084 | K17: 114138.9606 | L17: 167705.1294 | M17: 159743.3973 | N17: 170012.7689 | O17: 372519.1161 | P17: 347355.9439 | Q17: 433268.9774 | R17: 338345.9922 | S17: 359982.3415 | T17: 403418.3791 | U17: 431194.9507 | V17: 354763.6754 | W17: 283519.2145 | X17: 371500.3202 | Y17: 391209.0518 | Z17: 387578.8224 | AB17: 497461.2956
A18: CORDOBA | C18: 179310.8759 | D18: 236225.3138 | E18: 335726.5613 | F18: 237402.6802 | G18: 236508.8707 | H18: 211640.1814 | I18: 273497.1739 | J18: 174144.3288 | K18: 144392.1153 | L18: 243476.7687 | M18: 232547.0408 | N18: 242274.7378 | O18: 477783.4301 | P18: 570383.2359 | Q18: 699827.9232 | R18: 512497.0111 | S18: 526518.9978 | T18: 520933.9326 | U18: 624880.4162 | V18: 451597.9802 | W18: 400852.1001 | X18: 516547.6611 | Y18: 521792.0671 | Z18: 509488.2439 | AB18: 718298.5472
A19: LA CORUÑA | C19: 245133.4815 | D19: 275787.0363 | E19: 362705.2678 | F19: 241617.3068 | G19: 247377.7641 | H19: 305239.1288 | I19: 269585.0989 | J19: 232298.9865 | K19: 196059.8622 | L19: 288905.7378 | M19: 292906.56 | N19: 331255.247 | O19: 734829.5686 | P19: 851187.0877 | Q19: 808278.2387 | R19: 652846.287 | S19: 631863.5865 | T19: 773889.9045 | U19: 729243.1456 | V19: 677983.0848 | W19: 581887.9902 | X19: 584634.869 | Y19: 589615.4968 | Z19: 626979.0991 | AB19: 913067.5448
A20: CUENCA | C20: 56216.70728 | D20: 66400.75814 | E20: 72801.03438 | F20: 72765.9862 | G20: 70309.41162 | H20: 62256.04632 | I20: 68676.08802 | J20: 62414.5307 | K20: 53781.60976 | L20: 74111.54973 | M20: 60250.68053 | N20: 62814.8249 | O20: 169072.6855 | P20: 193418.6486 | Q20: 210902.2882 | R20: 201595.8535 | S20: 198691.4131 | T20: 190479.6388 | U20: 215889.3018 | V20: 220762.2531 | W20: 161097.292 | X20: 197186.8819 | Y20: 198257.048 | Z20: 176411.7418 | AB20: 197177.0552
A21: GERONA | C21: 189547.4479 | D21: 196256.4736 | E21: 270401.7178 | F21: 242236.2421 | G21: 242813.9667 | H21: 229967.8154 | I21: 199858.7123 | J21: 178775.537 | K21: 158315.834 | L21: 211693.9614 | M21: 184229.9114 | N21: 185752.359 | O21: 512007.2332 | P21: 576396.894 | Q21: 620249.4357 | R21: 549570.2023 | S21: 560771.7273 | T21: 583908.1575 | U21: 549218.7628 | V21: 464751.5681 | W21: 432900.4625 | X21: 499230.179 | Y21: 428631.4798 | Z21: 449783.5087 | AB21: 581676.2318
A22: GRANADA | C22: 244070.5461 | D22: 266387.4569 | E22: 363443.5639 | F22: 262067.3341 | G22: 280140.0679 | H22: 275669.907 | I22: 304942.5932 | J22: 257637.8442 | K22: 195296.7872 | L22: 254781.5982 | M22: 267777.1021 | N22: 289734.9871 | O22: 629460.0394 | P22: 661995.8795 | Q22: 779210.5973 | R22: 617838.3748 | S22: 642667.326 | T22: 665206.268 | U22: 695097.8551 | V22: 588425.6588 | W22: 544829.1715 | X22: 550562.6357 | Y22: 571828.5885 | Z22: 566687.7039 | AB22: 812293.6874
A23: GUADALAJARA | C23: 74821.64641 | D23: 70276.90578 | E23: 92030.81668 | F23: 74422.78572 | G23: 70462.57663 | H23: 84112.7027 | I23: 91623.47925 | J23: 56688.43133 | K23: 43473.02773 | L23: 71064.78242 | M23: 81367.32003 | N23: 65734.39623 | O23: 333235.5457 | P23: 252424.2508 | Q23: 268145.5023 | R23: 247337.4805 | S23: 255006.7564 | T23: 275249.1238 | U23: 325734.4186 | V23: 216409.7481 | W23: 179203.7601 | X23: 235675.5102 | Y23: 249131.1513 | Z23: 209893.0538 | AB23: 218166.4987
A24: GUIPUZCOA | C24: 94626.17012 | D24: 102446.6175 | E24: 124062.5756 | F24: 110592.3665 | G24: 110147.1911 | H24: 118859.238 | I24: 111282.0452 | J24: 72960.35489 | K24: 72495.54134 | L24: 111486.3464 | M24: 97653.83518 | N24: 136997.2941 | O24: 411684.8011 | P24: 299452.8038 | Q24: 356487.8693 | R24: 295131.702 | S24: 301592.7553 | T24: 328004.2805 | U24: 324381.7901 | V24: 206015.9937 | W24: 219971.4042 | X24: 261824.9775 | Y24: 244693.6635 | Z24: 292932.6843 | AB24: 346137.4757
A25: HUELVA | C25: 127197.1868 | D25: 112522.1948 | E25: 179636.5434 | F25: 132486.3023 | G25: 153437.989 | H25: 156289.9655 | I25: 136542.9672 | J25: 113539.3893 | K25: 105542.7183 | L25: 148151.5785 | M25: 158997.2149 | N25: 144049.7507 | O25: 362471.8666 | P25: 341726.5333 | Q25: 474915.8937 | R25: 333922.6427 | S25: 370236.2168 | T25: 424888.0261 | U25: 412629.4908 | V25: 307968.9578 | W25: 288062.463 | X25: 339146.6466 | Y25: 345668.9693 | Z25: 308085.0204 | AB25: 451198.5441
A26: HUESCA | C26: 36079.92074 | D26: 39120.76198 | E26: 59082.0309 | F26: 39687.35174 | G26: 49153.07837 | H26: 50433.8301 | I26: 44000.71787 | J26: 38292.24251 | K26: 30349.38553 | L26: 44652.48996 | M26: 41186.65868 | N26: 41288.90284 | O26: 168463.5339 | P26: 140490.2722 | Q26: 150733.1802 | R26: 115284.4216 | S26: 126593.5393 | T26: 140092.5818 | U26: 146458.908 | V26: 110814.6233 | W26: 114606.7437 | X26: 104241.7861 | Y26: 100569.9367 | Z26: 94607.70544 | AB26: 127128.0515
A27: JAEN | C27: 143173.6501 | D27: 199540.973 | E27: 247738.688 | F27: 194165.5547 | G27: 158913.2691 | H27: 161310.7045 | I27: 207826.6803 | J27: 156178.0805 | K27: 117937.6377 | L27: 186957.7666 | M27: 178026.5111 | N27: 193687.2786 | O27: 442353.0587 | P27: 475206.7305 | Q27: 528544.3089 | R27: 480132.922 | S27: 364899.851 | T27: 402238.0155 | U27: 467444.1407 | V27: 421372.4932 | W27: 372655.139 | X27: 387501.7158 | Y27: 395848.5869 | Z27: 392950.4838 | AB27: 558671.5563
A28: LEON | C28: 77278.97873 | D28: 103453.8048 | E28: 125508.7936 | F28: 110746.6196 | G28: 102076.8734 | H28: 113223.8241 | I28: 121158.9751 | J28: 92658.11755 | K28: 82823.193 | L28: 90296.89127 | M28: 95447.0504 | N28: 106849.444 | O28: 238041.493 | P28: 279363.5039 | Q28: 292799.0909 | R28: 240723.736 | S28: 322536.1404 | T28: 285128.1753 | U28: 350358.3584 | V28: 243840.5409 | W28: 225754.5953 | X28: 194289.3036 | Y28: 218480.2289 | Z28: 211842.3015 | AB28: 292593.3857
A29: LERIDA | C29: 95753.92111 | D29: 129031.7958 | E29: 153839.0574 | F29: 124416.4144 | G29: 118856.7373 | H29: 141736.9669 | I29: 122822.1488 | J29: 110912.9122 | K29: 93219.52302 | L29: 115530.3581 | M29: 96864.77931 | N29: 107063.1737 | O29: 303807.0445 | P29: 288280.4608 | Q29: 322805.1212 | R29: 275535.1923 | S29: 284030.2207 | T29: 322313.7667 | U29: 291323.1047 | V29: 277705.1756 | W29: 218704.2501 | X29: 259032.223 | Y29: 244537.7923 | Z29: 213154.1081 | AB29: 319458.3111
A30: LOGROÑO | C30: 72631.4671 | D30: 72978.00933 | E30: 99719.27759 | F30: 76622.93577 | G30: 91660.28148 | H30: 64436.09234 | I30: 75176.59565 | J30: 57482.96994 | K30: 55505.32446 | L30: 86307.69798 | M30: 82586.08954 | N30: 63417.19158 | O30: 211383.6524 | P30: 211098.3954 | Q30: 243271.8569 | R30: 200691.4731 | S30: 208102.3296 | T30: 214137.7674 | U30: 226324.2354 | V30: 183441.7583 | W30: 159666.212 | X30: 201034.1509 | Y30: 180769.7897 | Z30: 156071.9185 | AB30: 232310.9791
A31: LUGO | C31: 70613.51147 | D31: 70837.6955 | E31: 67701.57855 | F31: 64525.12301 | G31: 73431.32284 | H31: 65434.73852 | I31: 73913.29087 | J31: 63029.61992 | K31: 51361.65573 | L31: 57236.41527 | M31: 65546.88787 | N31: 67524.38314 | O31: 208663.8841 | P31: 193907.5165 | Q31: 224343.8542 | R31: 191499.0375 | S31: 217306.2016 | T31: 236440.4062 | U31: 235656.8639 | V31: 216203.8113 | W31: 173770.7972 | X31: 132544.2728 | Y31: 147426.9772 | Z31: 146437.4097 | AB31: 190307.6863
A32: MADRID | C32: 2038367.084 | D32: 2209245.731 | E32: 3149811.896 | F32: 2729304.405 | G32: 2569406.405 | H32: 3398922.052 | I32: 3196725.171 | J32: 2009575.656 | K32: 1997965.222 | L32: 1988882.304 | M32: 1870781.05 | N32: 1920522.734 | O32: 5548689.33 | P32: 5150985.924 | Q32: 6275840.996 | R32: 5536076.6 | S32: 5227534.832 | T32: 6606522.353 | U32: 6395015.174 | V32: 4192190.93 | W32: 3993314.677 | X32: 3835950.032 | Y32: 3662932.087 | Z32: 3723165.867 | AB32: 5780186.088
A33: MALAGA | C33: 485948.8483 | D33: 590610.182 | E33: 840089.015 | F33: 662032.5929 | G33: 668259.5625 | H33: 651301.0554 | I33: 664385.7575 | J33: 533720.7265 | K33: 544694.0249 | L33: 634750.8842 | M33: 622244.7315 | N33: 598282.7402 | O33: 1533984.658 | P33: 1572221.805 | Q33: 2119808.663 | R33: 1676378.408 | S33: 1760230.994 | T33: 1941617.754 | U33: 1914889.573 | V33: 1546311.455 | W33: 1515657.065 | X33: 1486210.764 | Y33: 1530635.717 | Z33: 1372505.385 | AB33: 1855278.356
A34: MURCIA | C34: 559409.6553 | D34: 474442.888 | E34: 605211.4369 | F34: 449575.3709 | G34: 526767.8007 | H34: 585739.4861 | I34: 546096.3729 | J34: 413773.1888 | K34: 328366.9399 | L34: 541048.7238 | M34: 549870.7911 | N34: 588893.2736 | O34: 1510445.949 | P34: 1278618.61 | Q34: 1455572.246 | R34: 1234336.839 | S34: 1916518.47 | T34: 1521006.766 | U34: 2067420.94 | V34: 1085608.289 | W34: 935293.5853 | X34: 1064691.714 | Y34: 1093380.214 | Z34: 1088872.563 | AB34: 1679812.788
A35: NAVARRA | C35: 122709.9828 | D35: 123660.0838 | E35: 178595.0376 | F35: 123381.7941 | G35: 115155.7374 | H35: 141338.8005 | I35: 96515.17483 | J35: 109028.1707 | K35: 95584.27664 | L35: 144128.2193 | M35: 123506.6277 | N35: 108098.1776 | O35: 438054.3233 | P35: 438391.997 | Q35: 574128.1704 | R35: 415351.2678 | S35: 443272.687 | T35: 484416.5723 | U35: 372264.5958 | V35: 395567.4742 | W35: 323683.901 | X35: 377294.4773 | Y35: 330792.7821 | Z35: 329515.7417 | AB35: 375733.0247
A36: ORENSE | C36: 93993.87056 | D36: 87284.65676 | E36: 126618.2231 | F36: 89099.80373 | G36: 89554.66638 | H36: 103450.0995 | I36: 111074.1103 | J36: 84607.85497 | K36: 72899.92142 | L36: 97658.47731 | M36: 101707.0348 | N36: 110442.0378 | O36: 328678.9973 | P36: 267206.7332 | Q36: 284439.9333 | R36: 220731.682 | S36: 236383.1841 | T36: 290034.6719 | U36: 289141.041 | V36: 262280.6648 | W36: 204561.3508 | X36: 228133.0718 | Y36: 220325.5269 | Z36: 246430.4518 | AB36: 309807.55
A37: ASTURIAS | C37: 184204.8279 | D37: 228166.2521 | E37: 302032.3897 | F37: 248158.8217 | G37: 233605.4923 | H37: 230320.7086 | I37: 240741.5388 | J37: 198230.7055 | K37: 153720.6789 | L37: 240727.8165 | M37: 217130.4315 | N37: 239779.9429 | O37: 644628.3073 | P37: 695497.7879 | Q37: 762633.2219 | R37: 638383.0718 | S37: 676300.1984 | T37: 720026.5088 | U37: 748360.5453 | V37: 633113.5647 | W37: 500082.4318 | X37: 561686.1894 | Y37: 526147.4587 | Z37: 509678.6531 | AB37: 697638.1909
A38: PALENCIA | C38: 29661.04909 | D38: 26593.78506 | E38: 28307.05205 | F38: 30615.81274 | G38: 30455.59413 | H38: 34953.4504 | I38: 29917.44973 | J38: 27794.92267 | K38: 19462.00313 | L38: 28810.3812 | M38: 37157.46443 | N38: 36481.56231 | O38: 124562.6515 | P38: 74174.64482 | Q38: 92727.9168 | R38: 75461.75394 | S38: 75266.52897 | T38: 106595.0318 | U38: 86259.08693 | V38: 88898.73747 | W38: 64510.36997 | X38: 81078.67506 | Y38: 89904.42247 | Z38: 76765.28388 | AB38: 102449.4079
A39: GRAN CANARIA | C39: 277238.5132 | D39: 292072.7393 | E39: 411779.8414 | F39: 340640.4461 | G39: 372371.257 | H39: 353666.6126 | I39: 345750.2818 | J39: 302925.0813 | K39: 291580.5743 | L39: 351526.9993 | M39: 322085.3767 | N39: 296942.7441 | O39: 1281561.9 | P39: 1175132.808 | Q39: 1461619.314 | R39: 1014677.996 | S39: 1156825.78 | T39: 1090787.764 | U39: 1733583.756 | V39: 3530602.599 | W39: 984764.0071 | X39: 991497.7181 | Y39: 957757.7561 | Z39: 767140.5998 | AB39: 970555.12
A40: PONTEVEDRA | C40: 217300.4778 | D40: 257559.94 | E40: 327192.0014 | F40: 243266.165 | G40: 234347.1648 | H40: 247808.5675 | I40: 270883.5055 | J40: 225168.1627 | K40: 196424.8444 | L40: 256592.6259 | M40: 249664.8456 | N40: 273349.7138 | O40: 637385.962 | P40: 675333.1115 | Q40: 732767.8878 | R40: 621712.181 | S40: 737703.2853 | T40: 683498.5416 | U40: 752174.6575 | V40: 688959.5376 | W40: 546449.8268 | X40: 579090.896 | Y40: 545119.364 | Z40: 601285.043 | AB40: 779607.1854
A41: SALAMANCA | C41: 85447.21254 | D41: 81296.00335 | E41: 111919.9798 | F41: 73632.77624 | G41: 81571.65435 | H41: 87754.69973 | I41: 86326.08059 | J41: 79031.47456 | K41: 68718.75098 | L41: 77372.27526 | M41: 74314.64891 | N41: 90122.52381 | O41: 199146.0291 | P41: 196314.4254 | Q41: 220981.5829 | R41: 186307.261 | S41: 192896.0778 | T41: 211887.8901 | U41: 233001.8023 | V41: 194610.9655 | W41: 165103.5671 | X41: 184339.7223 | Y41: 172585.9957 | Z41: 192495.6878 | AB41: 241809.448
A42: TENERIFE | C42: 207854.2618 | D42: 222292.0518 | E42: 293383.5173 | F42: 255426.9639 | G42: 267936.1079 | H42: 264721.8378 | I42: 260604.3182 | J42: 234779.1278 | K42: 212282.3353 | L42: 298440.4199 | M42: 266924.3906 | N42: 230372.0389 | O42: 883706.9569 | P42: 1016500.661 | Q42: 919048.1442 | R42: 712896.1642 | S42: 726544.3485 | T42: 783547.0745 | U42: 957309.7019 | V42: 744098.5233 | W42: 723135.1835 | X42: 691148.9145 | Y42: 628210.8618 | Z42: 576649.4565 | AB42: 795736.8494
A43: CANTABRIA | C43: 95373.55835 | D43: 137369.7311 | E43: 177892.6538 | F43: 134327.1345 | G43: 129006.0509 | H43: 153643.4225 | I43: 116600.3134 | J43: 111828.0555 | K43: 81824.59192 | L43: 118827.0874 | M43: 110635.1056 | N43: 119181.759 | O43: 300252.8609 | P43: 325482.1035 | Q43: 361825.1669 | R43: 319399.2318 | S43: 303009.3251 | T43: 348939.4083 | U43: 317148.3975 | V43: 303858.2764 | W43: 207284.1557 | X43: 277861.73 | Y43: 229240.3864 | Z43: 239033.5244 | AB43: 348643.9521
A44: SEGOVIA | C44: 33328.5326 | D44: 40173.15579 | E44: 54021.64409 | F44: 38328.12784 | G44: 45453.82221 | H44: 44572.31983 | I44: 41778.12019 | J44: 47081.52673 | K44: 31076.19036 | L44: 37487.42511 | M44: 35727.47833 | N44: 45307.92471 | O44: 105639.8358 | P44: 118083.5642 | Q44: 145505.5337 | R44: 97851.66728 | S44: 121199.0751 | T44: 130346.1673 | U44: 128387.4306 | V44: 130257.1692 | W44: 100608.1826 | X44: 119841.2878 | Y44: 110342.6044 | Z44: 117487.1922 | AB44: 118522.8282
A45: SEVILLA | C45: 638215.0437 | D45: 638875.0022 | E45: 879441.7649 | F45: 632815.4138 | G45: 706623.9522 | H45: 775597.0311 | I45: 802118.7775 | J45: 613692.5493 | K45: 504836.226 | L45: 777515.0112 | M45: 792752.8366 | N45: 741271.7507 | O45: 1701743.175 | P45: 1793416.593 | Q45: 2061321.627 | R45: 1544744.892 | S45: 1780267.045 | T45: 1950327.948 | U45: 2060319.167 | V45: 1614397.934 | W45: 1435471.885 | X45: 1574395.167 | Y45: 1675253.492 | Z45: 1532844.388 | AB45: 2311539.599
A46: SORIA | C46: 20347.42969 | D46: 14452.59015 | E46: 30017.8527 | F46: 30425.49441 | G46: 26133.32907 | H46: 20914.40387 | I46: 21797.74136 | J46: 16062.47683 | K46: 15449.41528 | L46: 16039.72454 | M46: 18433.73001 | N46: 21904.26839 | O46: 70088.47521 | P46: 50782.49166 | Q46: 90451.6356 | R46: 77928.36675 | S46: 70853.65171 | T46: 84596.33524 | U46: 70684.77226 | V46: 67217.98129 | W46: 54241.64114 | X46: 48884.3393 | Y46: 52889.21981 | Z46: 66038.52906 | AB46: 56377.72294
A47: TARRAGONA | C47: 242180.7593 | D47: 273428.1847 | E47: 341799.4225 | F47: 276994.2051 | G47: 284657.7576 | H47: 281655.5209 | I47: 253955.9987 | J47: 216782.538 | K47: 184366.2781 | L47: 259988.3867 | M47: 228691.9479 | N47: 215057.4234 | O47: 661838.5896 | P47: 659933.0018 | Q47: 719316.4925 | R47: 573833.2163 | S47: 636565.7528 | T47: 729156.8226 | U47: 634625.7187 | V47: 543710.4727 | W47: 469864.9249 | X47: 541457.6641 | Y47: 492254.8732 | Z47: 465722.0445 | AB47: 703737.758
A48: TERUEL | C48: 40565.07933 | D48: 55303.49324 | E48: 56084.51259 | F48: 52923.66944 | G48: 50715.1951 | H48: 56501.74688 | I48: 51831.6749 | J48: 44709.64418 | K48: 33580.16196 | L48: 43296.06663 | M48: 41299.40959 | N48: 53840.71186 | O48: 154377.2383 | P48: 160302.4084 | Q48: 162036.4771 | R48: 138995.233 | S48: 148449.6011 | T48: 164768.0063 | U48: 161853.2343 | V48: 169022.6847 | W48: 106374.7292 | X48: 132047.6916 | Y48: 115433.6721 | Z48: 143135.1198 | AB48: 138436.1881
A49: TOLEDO | C49: 222946.7986 | D49: 224690.2193 | E49: 301068.2691 | F49: 247464.3725 | G49: 243389.6634 | H49: 270677.7307 | I49: 269477.3282 | J49: 193466.3839 | K49: 193328.9198 | L49: 266095.4679 | M49: 274178.6618 | N49: 295578.1954 | O49: 769354.4664 | P49: 792125.0893 | Q49: 939941.51 | R49: 810420.5994 | S49: 796756.6836 | T49: 829742.0598 | U49: 879146.8066 | V49: 715649.4368 | W49: 634560.832 | X49: 766236.1761 | Y49: 763302.5442 | Z49: 800061.9128 | AB49: 835852.3251
A50: VALENCIA | C50: 743953.3464 | D50: 818130.9277 | E50: 916233.7665 | F50: 784117.7426 | G50: 834943.9442 | H50: 847945.6633 | I50: 937131.6143 | J50: 645008.7126 | K50: 616233.0212 | L50: 899029.687 | M50: 836673.6776 | N50: 891630.519 | O50: 2061805.317 | P50: 2126568.559 | Q50: 2239524.575 | R50: 1898545.37 | S50: 2869257.941 | T50: 2404308.274 | U50: 37487485.17 | V50: 1794187.179 | W50: 1801831.657 | X50: 1945424.582 | Y50: 1844514.823 | Z50: 1916565.99 | AB50: 2627333.884
A51: VALLADOLID | C51: 127624.4711 | D51: 120126.3754 | E51: 160310.0763 | F51: 140369.7562 | G51: 149849.1498 | H51: 134315.85 | I51: 151637.1785 | J51: 108033.1829 | K51: 95325.1599 | L51: 160442.3352 | M51: 136717.5992 | N51: 158300.3749 | O51: 531241.907 | P51: 400869.1309 | Q51: 418968.7069 | R51: 349511.0032 | S51: 389982.643 | T51: 405127.4728 | U51: 437304.619 | V51: 331871.3503 | W51: 287196.0183 | X51: 358601.6324 | Y51: 351305.6976 | Z51: 343030.2205 | AB51: 455460.3094
A52: VIZCAYA | C52: 163522.8848 | D52: 184772.1053 | E52: 309084.2387 | F52: 191717.4666 | G52: 215771.4735 | H52: 194462.3698 | I52: 235512.2589 | J52: 136037.5015 | K52: 114331.6596 | L52: 172352.506 | M52: 185402.8016 | N52: 198270.6909 | O52: 559528.9965 | P52: 611597.7589 | Q52: 823155.3893 | R52: 574096.6031 | S52: 698940.7072 | T52: 741711.7239 | U52: 697623.1907 | V52: 465508.2999 | W52: 403660.1451 | X52: 410920.1836 | Y52: 437943.1716 | Z52: 458063.9217 | AB52: 556025.9984
A53: ZAMORA | C53: 38333.34739 | D53: 39777.91531 | E53: 64703.09866 | F53: 40534.51866 | G53: 44072.92054 | H53: 42881.32367 | I53: 57485.29185 | J53: 34118.47351 | K53: 29218.82807 | L53: 43687.04453 | M53: 44837.20259 | N53: 43834.02518 | O53: 114694.1683 | P53: 183218.3171 | Q53: 128238.4519 | R53: 119905.6672 | S53: 111626.4203 | T53: 127688.71 | U53: 135898.457 | V53: 111962.1093 | W53: 92916.37257 | X53: 96045.59582 | Y53: 103740.9044 | Z53: 110889.3162 | AB53: 132358.2723
A54: ZARAGOZA | C54: 151754.5494 | D54: 175413.6116 | E54: 218717.0926 | F54: 174796.9552 | G54: 185506.2388 | H54: 182229.6279 | I54: 196633.4197 | J54: 134613.8402 | K54: 124015.4882 | L54: 190773.5838 | M54: 191262.585 | N54: 202286.0401 | O54: 534462.181 | P54: 580670.8692 | Q54: 606547.4668 | R54: 515707.1674 | S54: 553328.0056 | T54: 590325.9392 | U54: 625136.7124 | V54: 466353.6933 | W54: 433805.032 | X54: 472104.004 | Y54: 460144.0473 | Z54: 468438.4666 | AB54: 584322.2089
A55: CEUTA | C55: 29632.70945 | D55: 28641.27226 | E55: 35276.71113 | F55: 29192.47517 | G55: 29583.47046 | H55: 40670.84028 | I55: 43671.02366 | J55: 30283.04358 | K55: 25088.54393 | L55: 25985.10758 | M55: 17867.62304 | N55: 21382.59363 | O55: 99304.2347 | P55: 94850.07336 | Q55: 126131.3064 | R55: 96584.87566 | S55: 118176.524 | T55: 122980.0774 | U55: 127874.5224 | V55: 89807.2026 | W55: 88246.42784 | X55: 81027.45462 | Y55: 65500.47358 | Z55: 80410.28352 | AB55: 65235.32424
A56: MELILLA | C56: 67506.97261 | D56: 71903.26751 | E56: 87095.65001 | F56: 67939.75201 | G56: 59532.44542 | H56: 52404.87647 | I56: 52231.1528 | J56: 45763.46606 | K56: 40230.13852 | L56: 54593.72522 | M56: 66678.54314 | N56: 50793.72877 | O56: 179567.1953 | P56: 175463.9302 | Q56: 208496.1482 | R56: 152183.5922 | S56: 152715.1183 | T56: 152480.2508 | U56: 150050.5146 | V56: 124835.1929 | W56: 116511.0356 | X56: 131251.1207 | Y56: 143632.355 | Z56: 126766.1595 | AB56: 172065.9971
A58: TOTAL | C58: =SUM(C5:C56) -> 12295851.93 | D58: =SUM(D5:D56) -> 13178709.59 | E58: 17439103.84 | F58: 14062774.97 | G58: 14213674.74 | H58: 15467088.91 | I58: 15393831.72 | J58: 11204979.43 | K58: 10103660.42 | L58: 13497766.89 | M58: 12904188.31 | N58: 13388029.67 | O58: 36793783.07 | P58: 37146288.9 | Q58: 46892354.15 | R58: 35615102.73 | S58: 39205224.61 | T58: 42122739.61 | U58: 77494912.87 | V58: 33252577.51 | W58: 27491471.77 | X58: 29818258.73 | Y58: 28963324.53 | Z58: 28733402.22 | AB58: 39789984.87

Sheet datos_mapa
C1: DATOS | H1: RANKING
A2: ID | B2: PROVINCIA | C2: Dato 1 | D2: Dato 2 | E2: Dato 3 | F2: Dato 4 | H2: =C2 -> Dato 1 | I2: Dato 2 | J2: Dato 3 | K2: Dato 4
A3: 01 | B3: ALAVA | C3: 39 | D3: 0.08155624198 | E3: 0.08155624198 | F3: -0.918443758 | H3: =RANK(C3,C$3:C$54,0) -> 15 | I3: =53 - RANK(D3,D$3:D$54,1) -> 42 | J3: =RANK(E3,$E$3:$E$54,1) -> 11 | K3: =RANK(F3,F$3:F$54,1) -> 1
A4: 02 | B4: ALBACETE | C4: 45 | D4: 0.002496047713 | E4: 0.002496047713 | F4: -0.0387 | H4: =RANK(C4,C$3:C$54,0) -> 11 | I4: =53 - RANK(D4,D$3:D$54,1) -> 52 | J4: =RANK(E4,$E$3:$E$54,1) -> 1 | K4: =RANK(F4,F$3:F$54,1) -> 27
A5: 03 | B5: ALICANTE | C5: 21 | D5: 0.3841644417 | E5: 0.3841644417 | F5: 0.0634 | H5: 36 | I5: 29 | J5: 24 | K5: 42
A6: 04 | B6: ALMERIA | C6: 31 | D6: 0.06795600475 | E6: 0.06795600475 | F6: -0.0741 | H6: 29 | I6: 43 | J6: 10 | K6: 13
A7: 33 | B7: ASTURIAS | C7: 48 | D7: 0.5607528686 | E7: 0.5607528686 | F7: 0.0331 | H7: 4 | I7: 23 | J7: 30 | K7: 39
A8: 05 | B8: AVILA | C8: 20 | D8: 0.3519905723 | E8: 0.3519905723 | F8: -0.0317 | H8: 37 | I8: 30 | J8: 23 | K8: 28
A9: 06 | B9: BADAJOZ | C9: 7 | D9: 0.05103184013 | E9: 0.05103184013 | F9: -0.048 | H9: 47 | I9: 46 | J9: 7 | K9: 23
A10: 08 | B10: BARCELONA | C10: 48 | D10: 0.9017147935 | E10: 0.9017147935 | F10: 0.0082 | H10: 4 | I10: 5 | J10: 48 | K10: 34
A11: 09 | B11: BURGOS | C11: 2 | D11: 0.8391252529 | E11: 0.8391252529 | F11: 0.0943 | H11: 52 | I11: 9 | J11: 44 | K11: 47
A12: 10 | B12: CACERES | C12: 8 | D12: 0.01300483266 | E12: 0.01300483266 | F12: -0.0945 | H12: 46 | I12: 51 | J12: 2 | K12: 10
A13: 11 | B13: CADIZ | C13: 34 | D13: 0.8935189834 | E13: 0.8935189834 | F13: -0.2198 | H13: 24 | I13: 7 | J13: 46 | K13: 4
A14: 39 | B14: CANTABRIA | C14: 28 | D14: 0.6959902324 | E14: 0.6959902324 | F14: -0.0715 | H14: 33 | I14: 17 | J14: 36 | K14: 16
A15: 12 | B15: CASTELLON | C15: 48 | D15: 0.2455158045 | E15: 0.2455158045 | F15: 0.0154 | H15: 4 | I15: 34 | J15: 19 | K15: 36
A16: 13 | B16: CIUDAD REAL | C16: 34 | D16: 0.8070582609 | E16: 0.8070582609 | F16: -0.0055 | H16: 24 | I16: 11 | J16: 42 | K16: 32
A17: 14 | B17: CORDOBA | C17: 18 | D17: 0.03533673355 | E17: 0.03533673355 | F17: -0.0741 | H17: 40 | I17: 49 | J17: 4 | K17: 13
A18: 15 | B18: LA CORUÑA | C18: 38 | D18: 0.5968538392 | E18: 0.5968538392 | F18: 0.0151 | H18: 18 | I18: 20 | J18: 33 | K18: 35
A19: 16 | B19: CUENCA | C19: 19 | D19: 0.7098017406 | E19: 0.7098017406 | F19: -0.108 | H19: 38 | I19: 16 | J19: 37 | K19: 6
A20: 17 | B20: GERONA | C20: 50 | D20: 0.9290127258 | E20: 0.9290127258 | F20: -0.0521 | H20: 1 | I20: 2 | J20: 51 | K20: 21
A21: 18 | B21: GRANADA | C21: 6 | D21: 0.6232909771 | E21: 0.6232909771 | F21: -0.0741 | H21: 49 | I21: 19 | J21: 34 | K21: 13
A22: 19 | B22: GUADALAJARA | C22: 3 | D22: 0.1524723644 | E22: 0.1524723644 | F22: -0.0562 | H22: 51 | I22: 39 | J22: 14 | K22: 18
A23: 20 | B23: GUIPUZCOA | C23: 18 | D23: 0.05879487442 | E23: 0.05879487442 | F23: -0.0137 | H23: 40 | I23: 45 | J23: 8 | K23: 31
A24: 21 | B24: HUELVA | C24: 48 | D24: 0.2302225105 | E24: 0.2302225105 | F24: -0.1432 | H24: 4 | I24: 35 | J24: 18 | K24: 5
A25: 22 | B25: HUESCA | C25: 45 | D25: 0.8993073371 | E25: 0.8993073371 | F25: 0.0945 | H25: 11 | I25: 6 | J25: 47 | K25: 48
A26: 07 | B26: BALEARES | C26: 30 | D26: 0.9018036871 | E26: 0.9018036871 | F26: 0.0731 | H26: 30 | I26: 4 | J26: 49 | K26: 44
A27: 23 | B27: JAEN | C27: 39 | D27: 0.03576897867 | E27: 0.03576897867 | F27: -0.1029 | H27: 15 | I27: 48 | J27: 5 | K27: 7
A28: 24 | B28: LEON | C28: 34 | D28: 0.8607852316 | E28: 0.8607852316 | F28: 0.0521 | H28: 24 | I28: 8 | J28: 45 | K28: 41
A29: 25 | B29: LERIDA | C29: 30 | D29: 0.1783520641 | E29: 0.1783520641 | F29: -0.0489 | H29: 30 | I29: 38 | J29: 15 | K29: 22
A30: 27 | B30: LUGO | C30: 36 | D30: 0.7299629086 | E30: 0.7299629086 | F30: 0.1246 | H30: 23 | I30: 15 | J30: 38 | K30: 50
A31: 28 | B31: MADRID | C31: 19 | D31: 0.3441949407 | E31: 0.3441949407 | F31: 0.0029 | H31: 38 | I31: 31 | J31: 22 | K31: 33
A32: 29 | B32: MALAGA | C32: 37 | D32: 0.4044155173 | E32: 0.4044155173 | F32: -0.1029 | H32: 22 | I32: 26 | J32: 27 | K32: 7
A33: 30 | B33: MURCIA | C33: 13 | D33: 0.6826436897 | E33: 0.6826436897 | F33: -0.0538 | H33: 42 | I33: 18 | J33: 35 | K33: 20
A34: 31 | B34: NAVARRA | C34: 38 | D34: 0.7720647409 | E34: 0.7720647409 | F34: 0.0996 | H34: 18 | I34: 12 | J34: 41 | K34: 49
A35: 32 | B35: ORENSE | C35: 46 | D35: 0.2640595306 | E35: 0.2640595306 | F35: 0.0213 | H35: 9 | I35: 33 | J35: 20 | K35: 37
A36: 34 | B36: PALENCIA | C36: 47 | D36: 0.04100144842 | E36: 0.04100144842 | F36: 0.0827 | H36: 8 | I36: 47 | J36: 6 | K36: 45
A37: 35 | B37: GRAN CANARIA | C37: 38 | D37: 0.4035022485 | E37: 0.4035022485 | F37: -0.0437 | H37: 18 | I37: 27 | J37: 26 | K37: 25
A38: 36 | B38: PONTEVEDRA | C38: 45 | D38: 0.2112861189 | E38: 0.2112861189 | F38: 0.0919 | H38: 11 | I38: 36 | J38: 17 | K38: 46
A39: 26 | B39: LOGROÑO | C39: 33 | D39: 0.5493754654 | E39: 0.5493754654 | F39: 0.0666 | H39: 27 | I39: 24 | J39: 29 | K39: 43
A40: 37 | B40: SALAMANCA | C40: 9 | D40: 0.5777938227 | E40: 0.5777938227 | F40: -0.04 | H40: 45 | I40: 22 | J40: 31 | K40: 26
A41: 40 | B41: SEGOVIA | C41: 11 | D41: 0.1506014657 | E41: 0.1506014657 | F41: -0.0208 | H41: 44 | I41: 40 | J41: 13 | K41: 30
A42: 41 | B42: SEVILLA | C42: 50 | D42: 0.1888727377 | E42: 0.1888727377 | F42: -0.0951 | H42: 1 | I42: 37 | J42: 16 | K42: 9
A43: 42 | B43: SORIA | C43: 39 | D43: 0.1450410512 | E43: 0.1450410512 | F43: -0.0454 | H43: 15 | I43: 41 | J43: 12 | K43: 24
A44: 43 | B44: TARRAGONA | C44: 46 | D44: 0.4011296028 | E44: 0.4011296028 | F44: -0.0242 | H44: 9 | I44: 28 | J44: 25 | K44: 29
A45: 38 | B45: TENERIFE | C45: 13 | D45: 0.03466967647 | E45: 0.03466967647 | F45: -0.0939 | H45: 42 | I45: 50 | J45: 3 | K45: 11
A46: 44 | B46: TERUEL | C46: 49 | D46: 0.4257278698 | E46: 0.4257278698 | F46: -0.0542 | H46: 3 | I46: 25 | J46: 28 | K46: 19
A47: 45 | B47: TOLEDO | C47: 38 | D47: 0.06388768576 | E47: 0.06388768576 | F47: -0.0863 | H47: 18 | I47: 44 | J47: 9 | K47: 12
A48: 46 | B48: VALENCIA | C48: 24 | D48: 0.7436502211 | E48: 0.7436502211 | F48: -0.0652 | H48: 35 | I48: 14 | J48: 39 | K48: 17
A49: 47 | B49: VALLADOLID | C49: 29 | D49: 0.9182006336 | E49: 0.9182006336 | F49: 0.0263 | H49: 32 | I49: 3 | J49: 50 | K49: 38
A50: 48 | B50: VIZCAYA | C50: 45 | D50: 0.953828694 | E50: 0.953828694 | F50: 0.1591 | H50: 11 | I50: 1 | J50: 52 | K50: 52
A51: 49 | B51: ZAMORA | C51: 7 | D51: 0.283165304 | E51: 0.283165304 | F51: 0.0396 | H51: 47 | I51: 32 | J51: 21 | K51: 40
A52: 50 | B52: ZARAGOZA | C52: 33 | D52: 0.7486628743 | E52: 0.7486628743 | F52: 0.1375 | H52: 27 | I52: 13 | J52: 40 | K52: 51
A53: 51 | B53: CEUTA | C53: 4 | D53: 0.5935224872 | E53: 0.5935224872 | F53: -0.2727 | H53: 50 | I53: 21 | J53: 32 | K53: 2
A54: 52 | B54: MELILLA | C54: 28 | D54: 0.8236784084 | E54: 0.8236784084 | F54: -0.2727 | H54: 33 | I54: 10 | J54: 43 | K54: 2

Sheet mapa
Q2: COLORES
J3: Provincia | K3: Shape | L3: =+datos_mapa!C2 -> Dato 1 | M3: =+datos_mapa!D2 -> Dato 2 | N3: =+datos_mapa!E2 -> Dato 3 | O3: =+datos_mapa!F2 -> Dato 4 | Q3: =+datos_mapa!H2 -> Dato 1 | R3: =+datos_mapa!I2 -> Dato 2 | S3: =+datos_mapa!J2 -> Dato 3 | T3: =+datos_mapa!K2 -> Dato 4 | V3: Número ranking | W3: color
J4: Álava | K4: alava | L4: =+datos_mapa!C3 -> 39 | M4: =TEXT(datos_mapa!D3,"0,0%") -> 8,2% | N4: =TEXT(datos_mapa!E3,"0,0%") -> 8,2% | O4: =TEXT(datos_mapa!F3,"0,0%") -> -91,8% | Q4: =VLOOKUP(datos_mapa!H3,mapa!$V$4:$W$55,2,0) -> 8378040 | R4: =+VLOOKUP(datos_mapa!I3,mapa!$V$4:$W$55,2,0) -> 7707899 | S4: =VLOOKUP(datos_mapa!J3,mapa!$V$4:$W$55,2,0) -> 8310688 | T4: =VLOOKUP(datos_mapa!K3,mapa!$V$4:$W$55,2,0) -> 8109667 | V4: 1 | W4: 8109667
J5: Albacete | K5: albacete | L5: =+datos_mapa!C4 -> 45 | M5: =TEXT(datos_mapa!D4,"0,0%") -> 0,2% | N5: =TEXT(datos_mapa!E4,"0,0%") -> 0,2% | O5: =TEXT(datos_mapa!F4,"0,0%") -> -3,9% | Q5: =VLOOKUP(datos_mapa!H4,mapa!$V$4:$W$55,2,0) -> 8310688 | R5: =+VLOOKUP(datos_mapa!I4,mapa!$V$4:$W$55,2,0) -> 7039480 | S5: =VLOOKUP(datos_mapa!J4,mapa!$V$4:$W$55,2,0) -> 8109667 | T5: =VLOOKUP(datos_mapa!K4,mapa!$V$4:$W$55,2,0) -> 8710655 | V5: 2 | W5: 8109929
J6: Alicante | K6: alicante | L6: =+datos_mapa!C5 -> 21 | M6: =TEXT(datos_mapa!D5,"0,0%") -> 38,4% | N6: =TEXT(datos_mapa!E5,"0,0%") -> 38,4% | O6: =TEXT(datos_mapa!F5,"0,0%") -> 6,3% | Q6: =VLOOKUP(datos_mapa!H5,mapa!$V$4:$W$55,2,0) -> 8109053 | R6: =+VLOOKUP(datos_mapa!I5,mapa!$V$4:$W$55,2,0) -> 8577023 | S6: =VLOOKUP(datos_mapa!J5,mapa!$V$4:$W$55,2,0) -> 8644335 | T6: =VLOOKUP(datos_mapa!K5,mapa!$V$4:$W$55,2,0) -> 7707899 | V6: 3 | W6: 8110447
J7: Almería | K7: almeria | L7: =+datos_mapa!C6 -> 31 | M7: =TEXT(datos_mapa!D6,"0,0%") -> 6,8% | N7: =TEXT(datos_mapa!E6,"0,0%") -> 6,8% | O7: =TEXT(datos_mapa!F6,"0,0%") -> -7,4% | Q7: =VLOOKUP(datos_mapa!H6,mapa!$V$4:$W$55,2,0) -> 8577023 | R7: =+VLOOKUP(datos_mapa!I6,mapa!$V$4:$W$55,2,0) -> 7641083 | S7: =VLOOKUP(datos_mapa!J6,mapa!$V$4:$W$55,2,0) -> 8310170 | T7: =VLOOKUP(datos_mapa!K6,mapa!$V$4:$W$55,2,0) -> 8377260 | V7: 4 | W7: 8176501
J8: Asturias | K8: asturias | L8: =+datos_mapa!C7 -> 48 | M8: =TEXT(datos_mapa!D7,"0,0%") -> 56,1% | N8: =TEXT(datos_mapa!E7,"0,0%") -> 56,1% | O8: =TEXT(datos_mapa!F7,"0,0%") -> 3,3% | Q8: =VLOOKUP(datos_mapa!H7,mapa!$V$4:$W$55,2,0) -> 8176501 | R8: =+VLOOKUP(datos_mapa!I7,mapa!$V$4:$W$55,2,0) -> 8578281 | S8: =VLOOKUP(datos_mapa!J7,mapa!$V$4:$W$55,2,0) -> 8510207 | T8: =VLOOKUP(datos_mapa!K7,mapa!$V$4:$W$55,2,0) -> 7908604 | V8: 5 | W8: 8177019
J9: Ávila | K9: avila | L9: =+datos_mapa!C8 -> 20 | M9: =TEXT(datos_mapa!D8,"0,0%") -> 35,2% | N9: =TEXT(datos_mapa!E8,"0,0%") -> 35,2% | O9: =TEXT(datos_mapa!F8,"0,0%") -> -3,2% | Q9: =VLOOKUP(datos_mapa!H8,mapa!$V$4:$W$55,2,0) -> 8042237 | R9: =+VLOOKUP(datos_mapa!I8,mapa!$V$4:$W$55,2,0) -> 8510207 | S9: =VLOOKUP(datos_mapa!J8,mapa!$V$4:$W$55,2,0) -> 8578281 | T9: =VLOOKUP(datos_mapa!K8,mapa!$V$4:$W$55,2,0) -> 8643839 | V9: 6 | W9: 8177281
J10: Badajoz | K10: badajoz | L10: =+datos_mapa!C9 -> 7 | M10: =TEXT(datos_mapa!D9,"0,0%") -> 5,1% | N10: =TEXT(datos_mapa!E9,"0,0%") -> 5,1% | O10: =TEXT(datos_mapa!F9,"0,0%") -> -4,8% | Q10: =VLOOKUP(datos_mapa!H9,mapa!$V$4:$W$55,2,0) -> 7373818 | R10: =+VLOOKUP(datos_mapa!I9,mapa!$V$4:$W$55,2,0) -> 7440634 | S10: =VLOOKUP(datos_mapa!J9,mapa!$V$4:$W$55,2,0) -> 8243335 | T10: =VLOOKUP(datos_mapa!K9,mapa!$V$4:$W$55,2,0) -> 8578281 | V10: 7 | W10: 8243335
J11: Barcelona | K11: barcelona | L11: =+datos_mapa!C10 -> 48 | M11: =TEXT(datos_mapa!D10,"0,0%") -> 90,2% | N11: =TEXT(datos_mapa!E10,"0,0%") -> 90,2% | O11: =TEXT(datos_mapa!F10,"0,0%") -> 0,8% | Q11: =VLOOKUP(datos_mapa!H10,mapa!$V$4:$W$55,2,0) -> 8176501 | R11: =+VLOOKUP(datos_mapa!I10,mapa!$V$4:$W$55,2,0) -> 8177019 | S11: =VLOOKUP(datos_mapa!J10,mapa!$V$4:$W$55,2,0) -> 7307002 | T11: =VLOOKUP(datos_mapa!K10,mapa!$V$4:$W$55,2,0) -> 8242685 | V11: 8 | W11: 8243853
J12: Burgos | K12: burgos | L12: =+datos_mapa!C11 -> 2 | M12: =TEXT(datos_mapa!D11,"0,0%") -> 83,9% | N12: =TEXT(datos_mapa!E11,"0,0%") -> 83,9% | O12: =TEXT(datos_mapa!F11,"0,0%") -> 9,4% | Q12: =VLOOKUP(datos_mapa!H11,mapa!$V$4:$W$55,2,0) -> 7039480 | R12: =+VLOOKUP(datos_mapa!I11,mapa!$V$4:$W$55,2,0) -> 8244371 | S12: =VLOOKUP(datos_mapa!J11,mapa!$V$4:$W$55,2,0) -> 7574267 | T12: =VLOOKUP(datos_mapa!K11,mapa!$V$4:$W$55,2,0) -> 7373818 | V12: 9 | W12: 8244371
J13: Cáceres | K13: caceres | L13: =+datos_mapa!C12 -> 8 | M13: =TEXT(datos_mapa!D12,"0,0%") -> 1,3% | N13: =TEXT(datos_mapa!E12,"0,0%") -> 1,3% | O13: =TEXT(datos_mapa!F12,"0,0%") -> -9,5% | Q13: =VLOOKUP(datos_mapa!H12,mapa!$V$4:$W$55,2,0) -> 7440634 | R13: =+VLOOKUP(datos_mapa!I12,mapa!$V$4:$W$55,2,0) -> 7106553 | S13: =VLOOKUP(datos_mapa!J12,mapa!$V$4:$W$55,2,0) -> 8109929 | T13: =VLOOKUP(datos_mapa!K12,mapa!$V$4:$W$55,2,0) -> 8310170 | V13: 10 | W13: 8310170
J14: Cádiz | K14: cadiz | L14: =+datos_mapa!C13 -> 34 | M14: =TEXT(datos_mapa!D13,"0,0%") -> 89,4% | N14: =TEXT(datos_mapa!E13,"0,0%") -> 89,4% | O14: =TEXT(datos_mapa!F13,"0,0%") -> -22,0% | Q14: =VLOOKUP(datos_mapa!H13,mapa!$V$4:$W$55,2,0) -> 8644335 | R14: =+VLOOKUP(datos_mapa!I13,mapa!$V$4:$W$55,2,0) -> 8243335 | S14: =VLOOKUP(datos_mapa!J13,mapa!$V$4:$W$55,2,0) -> 7440634 | T14: =VLOOKUP(datos_mapa!K13,mapa!$V$4:$W$55,2,0) -> 8176501 | V14: 11 | W14: 8310688
J15: Cantabria | K15: cantabria | L15: =+datos_mapa!C14 -> 28 | M15: =TEXT(datos_mapa!D14,"0,0%") -> 69,6% | N15: =TEXT(datos_mapa!E14,"0,0%") -> 69,6% | O15: =TEXT(datos_mapa!F14,"0,0%") -> -7,2% | Q15: =VLOOKUP(datos_mapa!H14,mapa!$V$4:$W$55,2,0) -> 8309502 | R15: =+VLOOKUP(datos_mapa!I14,mapa!$V$4:$W$55,2,0) -> 8444612 | S15: =VLOOKUP(datos_mapa!J14,mapa!$V$4:$W$55,2,0) -> 8109053 | T15: =VLOOKUP(datos_mapa!K14,mapa!$V$4:$W$55,2,0) -> 8444094 | V15: 12 | W15: 8311206
J16: Castellón | K16: castellon | L16: =+datos_mapa!C15 -> 48 | M16: =TEXT(datos_mapa!D15,"0,0%") -> 24,6% | N16: =TEXT(datos_mapa!E15,"0,0%") -> 24,6% | O16: =TEXT(datos_mapa!F15,"0,0%") -> 1,5% | Q16: =VLOOKUP(datos_mapa!H15,mapa!$V$4:$W$55,2,0) -> 8176501 | R16: =+VLOOKUP(datos_mapa!I15,mapa!$V$4:$W$55,2,0) -> 8242685 | S16: =VLOOKUP(datos_mapa!J15,mapa!$V$4:$W$55,2,0) -> 8510929 | T16: =VLOOKUP(datos_mapa!K15,mapa!$V$4:$W$55,2,0) -> 8109053 | V16: 13 | W16: 8377260
J17: Ciudad Real | K17: c_real | L17: =+datos_mapa!C16 -> 34 | M17: =TEXT(datos_mapa!D16,"0,0%") -> 80,7% | N17: =TEXT(datos_mapa!E16,"0,0%") -> 80,7% | O17: =TEXT(datos_mapa!F16,"0,0%") -> -0,6% | Q17: =VLOOKUP(datos_mapa!H16,mapa!$V$4:$W$55,2,0) -> 8644335 | R17: =+VLOOKUP(datos_mapa!I16,mapa!$V$4:$W$55,2,0) -> 8310688 | S17: =VLOOKUP(datos_mapa!J16,mapa!$V$4:$W$55,2,0) -> 7707899 | T17: =VLOOKUP(datos_mapa!K16,mapa!$V$4:$W$55,2,0) -> 8376318 | V17: 14 | W17: 8377522
J18: Córdoba | K18: cordoba | L18: =+datos_mapa!C17 -> 18 | M18: =TEXT(datos_mapa!D17,"0,0%") -> 3,5% | N18: =TEXT(datos_mapa!E17,"0,0%") -> 3,5% | O18: =TEXT(datos_mapa!F17,"0,0%") -> -7,4% | Q18: =VLOOKUP(datos_mapa!H17,mapa!$V$4:$W$55,2,0) -> 7841788 | R18: =+VLOOKUP(datos_mapa!I17,mapa!$V$4:$W$55,2,0) -> 7240185 | S18: =VLOOKUP(datos_mapa!J17,mapa!$V$4:$W$55,2,0) -> 8176501 | T18: =VLOOKUP(datos_mapa!K17,mapa!$V$4:$W$55,2,0) -> 8377260 | V18: 15 | W18: 8378040
J19: La Coruña | K19: la_coruna | L19: =+datos_mapa!C18 -> 38 | M19: =TEXT(datos_mapa!D18,"0,0%") -> 59,7% | N19: =TEXT(datos_mapa!E18,"0,0%") -> 59,7% | O19: =TEXT(datos_mapa!F18,"0,0%") -> 1,5% | Q19: =VLOOKUP(datos_mapa!H18,mapa!$V$4:$W$55,2,0) -> 8510667 | R19: =+VLOOKUP(datos_mapa!I18,mapa!$V$4:$W$55,2,0) -> 8511447 | S19: =VLOOKUP(datos_mapa!J18,mapa!$V$4:$W$55,2,0) -> 8309502 | T19: =VLOOKUP(datos_mapa!K18,mapa!$V$4:$W$55,2,0) -> 8175869 | V19: 16 | W19: 8444094
J20: Cuenca | K20: cuenca | L20: =+datos_mapa!C19 -> 19 | M20: =TEXT(datos_mapa!D19,"0,0%") -> 71,0% | N20: =TEXT(datos_mapa!E19,"0,0%") -> 71,0% | O20: =TEXT(datos_mapa!F19,"0,0%") -> -10,8% | Q20: =VLOOKUP(datos_mapa!H19,mapa!$V$4:$W$55,2,0) -> 7975420 | R20: =+VLOOKUP(datos_mapa!I19,mapa!$V$4:$W$55,2,0) -> 8444094 | S20: =VLOOKUP(datos_mapa!J19,mapa!$V$4:$W$55,2,0) -> 8042237 | T20: =VLOOKUP(datos_mapa!K19,mapa!$V$4:$W$55,2,0) -> 8177281 | V20: 17 | W20: 8444612
J21: Gerona | K21: gerona | L21: =+datos_mapa!C20 -> 50 | M21: =TEXT(datos_mapa!D20,"0,0%") -> 92,9% | N21: =TEXT(datos_mapa!E20,"0,0%") -> 92,9% | O21: =TEXT(datos_mapa!F20,"0,0%") -> -5,2% | Q21: =VLOOKUP(datos_mapa!H20,mapa!$V$4:$W$55,2,0) -> 8109667 | R21: =+VLOOKUP(datos_mapa!I20,mapa!$V$4:$W$55,2,0) -> 8109929 | S21: =VLOOKUP(datos_mapa!J20,mapa!$V$4:$W$55,2,0) -> 7106553 | T21: =VLOOKUP(datos_mapa!K20,mapa!$V$4:$W$55,2,0) -> 8577501 | V21: 18 | W21: 8510667
J22: Granada | K22: granada | L22: =+datos_mapa!C21 -> 6 | M22: =TEXT(datos_mapa!D21,"0,0%") -> 62,3% | N22: =TEXT(datos_mapa!E21,"0,0%") -> 62,3% | O22: =TEXT(datos_mapa!F21,"0,0%") -> -7,4% | Q22: =VLOOKUP(datos_mapa!H21,mapa!$V$4:$W$55,2,0) -> 7240185 | R22: =+VLOOKUP(datos_mapa!I21,mapa!$V$4:$W$55,2,0) -> 8510929 | S22: =VLOOKUP(datos_mapa!J21,mapa!$V$4:$W$55,2,0) -> 8242685 | T22: =VLOOKUP(datos_mapa!K21,mapa!$V$4:$W$55,2,0) -> 8377260 | V22: 19 | W22: 8510929
J23: Guadalajara | K23: guadalajara | L23: =+datos_mapa!C22 -> 3 | M23: =TEXT(datos_mapa!D22,"0,0%") -> 15,2% | N23: =TEXT(datos_mapa!E22,"0,0%") -> 15,2% | O23: =TEXT(datos_mapa!F22,"0,0%") -> -5,6% | Q23: =VLOOKUP(datos_mapa!H22,mapa!$V$4:$W$55,2,0) -> 7106553 | R23: =+VLOOKUP(datos_mapa!I22,mapa!$V$4:$W$55,2,0) -> 7908604 | S23: =VLOOKUP(datos_mapa!J22,mapa!$V$4:$W$55,2,0) -> 8377522 | T23: =VLOOKUP(datos_mapa!K22,mapa!$V$4:$W$55,2,0) -> 8510667 | V23: 20 | W23: 8511447
J24: Guipúzcoa | K24: guipuzcoa | L24: =+datos_mapa!C23 -> 18 | M24: =TEXT(datos_mapa!D23,"0,0%") -> 5,9% | N24: =TEXT(datos_mapa!E23,"0,0%") -> 5,9% | O24: =TEXT(datos_mapa!F23,"0,0%") -> -1,4% | Q24: =VLOOKUP(datos_mapa!H23,mapa!$V$4:$W$55,2,0) -> 7841788 | R24: =+VLOOKUP(datos_mapa!I23,mapa!$V$4:$W$55,2,0) -> 7507450 | S24: =VLOOKUP(datos_mapa!J23,mapa!$V$4:$W$55,2,0) -> 8243853 | T24: =VLOOKUP(datos_mapa!K23,mapa!$V$4:$W$55,2,0) -> 8443390 | V24: 21 | W24: 8577501
J25: Huelva | K25: huelva | L25: =+datos_mapa!C24 -> 48 | M25: =TEXT(datos_mapa!D24,"0,0%") -> 23,0% | N25: =TEXT(datos_mapa!E24,"0,0%") -> 23,0% | O25: =TEXT(datos_mapa!F24,"0,0%") -> -14,3% | Q25: =VLOOKUP(datos_mapa!H24,mapa!$V$4:$W$55,2,0) -> 8176501 | R25: =+VLOOKUP(datos_mapa!I24,mapa!$V$4:$W$55,2,0) -> 8175869 | S25: =VLOOKUP(datos_mapa!J24,mapa!$V$4:$W$55,2,0) -> 8510667 | T25: =VLOOKUP(datos_mapa!K24,mapa!$V$4:$W$55,2,0) -> 8177019 | V25: 22 | W25: 8578019
J26: Huesca | K26: huesca | L26: =+datos_mapa!C25 -> 45 | M26: =TEXT(datos_mapa!D25,"0,0%") -> 89,9% | N26: =TEXT(datos_mapa!E25,"0,0%") -> 89,9% | O26: =TEXT(datos_mapa!F25,"0,0%") -> 9,5% | Q26: =VLOOKUP(datos_mapa!H25,mapa!$V$4:$W$55,2,0) -> 8310688 | R26: =+VLOOKUP(datos_mapa!I25,mapa!$V$4:$W$55,2,0) -> 8177281 | S26: =VLOOKUP(datos_mapa!J25,mapa!$V$4:$W$55,2,0) -> 7373818 | T26: =VLOOKUP(datos_mapa!K25,mapa!$V$4:$W$55,2,0) -> 7307002 | V26: 23 | W26: 8578281
J27: Islas Baleares | K27: baleares | L27: =+datos_mapa!C26 -> 30 | M27: =TEXT(datos_mapa!D26,"0,0%") -> 90,2% | N27: =TEXT(datos_mapa!E26,"0,0%") -> 90,2% | O27: =TEXT(datos_mapa!F26,"0,0%") -> 7,3% | Q27: =VLOOKUP(datos_mapa!H26,mapa!$V$4:$W$55,2,0) -> 8510207 | R27: =+VLOOKUP(datos_mapa!I26,mapa!$V$4:$W$55,2,0) -> 8176501 | S27: =VLOOKUP(datos_mapa!J26,mapa!$V$4:$W$55,2,0) -> 7240185 | T27: =VLOOKUP(datos_mapa!K26,mapa!$V$4:$W$55,2,0) -> 7574267 | V27: 24 | W27: 8644335
J28: Jaén | K28: jaen | L28: =+datos_mapa!C27 -> 39 | M28: =TEXT(datos_mapa!D27,"0,0%") -> 3,6% | N28: =TEXT(datos_mapa!E27,"0,0%") -> 3,6% | O28: =TEXT(datos_mapa!F27,"0,0%") -> -10,3% | Q28: =VLOOKUP(datos_mapa!H27,mapa!$V$4:$W$55,2,0) -> 8378040 | R28: =+VLOOKUP(datos_mapa!I27,mapa!$V$4:$W$55,2,0) -> 7307002 | S28: =VLOOKUP(datos_mapa!J27,mapa!$V$4:$W$55,2,0) -> 8177019 | T28: =VLOOKUP(datos_mapa!K27,mapa!$V$4:$W$55,2,0) -> 8243335 | V28: 25 | W28: 8644853
J29: León | K29: leon | L29: =+datos_mapa!C28 -> 34 | M29: =TEXT(datos_mapa!D28,"0,0%") -> 86,1% | N29: =TEXT(datos_mapa!E28,"0,0%") -> 86,1% | O29: =TEXT(datos_mapa!F28,"0,0%") -> 5,2% | Q29: =VLOOKUP(datos_mapa!H28,mapa!$V$4:$W$55,2,0) -> 8644335 | R29: =+VLOOKUP(datos_mapa!I28,mapa!$V$4:$W$55,2,0) -> 8243853 | S29: =VLOOKUP(datos_mapa!J28,mapa!$V$4:$W$55,2,0) -> 7507450 | T29: =VLOOKUP(datos_mapa!K28,mapa!$V$4:$W$55,2,0) -> 7774972 | V29: 26 | W29: 8645371
J30: Lérida | K30: lerida | L30: =+datos_mapa!C29 -> 30 | M30: =TEXT(datos_mapa!D29,"0,0%") -> 17,8% | N30: =TEXT(datos_mapa!E29,"0,0%") -> 17,8% | O30: =TEXT(datos_mapa!F29,"0,0%") -> -4,9% | Q30: =VLOOKUP(datos_mapa!H29,mapa!$V$4:$W$55,2,0) -> 8510207 | R30: =+VLOOKUP(datos_mapa!I29,mapa!$V$4:$W$55,2,0) -> 7975420 | S30: =VLOOKUP(datos_mapa!J29,mapa!$V$4:$W$55,2,0) -> 8378040 | T30: =VLOOKUP(datos_mapa!K29,mapa!$V$4:$W$55,2,0) -> 8578019 | V30: 27 | W30: 8710655
J31: Lugo | K31: lugo | L31: =+datos_mapa!C30 -> 36 | M31: =TEXT(datos_mapa!D30,"0,0%") -> 73,0% | N31: =TEXT(datos_mapa!E30,"0,0%") -> 73,0% | O31: =TEXT(datos_mapa!F30,"0,0%") -> 12,5% | Q31: =VLOOKUP(datos_mapa!H30,mapa!$V$4:$W$55,2,0) -> 8578281 | R31: =+VLOOKUP(datos_mapa!I30,mapa!$V$4:$W$55,2,0) -> 8378040 | S31: =VLOOKUP(datos_mapa!J30,mapa!$V$4:$W$55,2,0) -> 7975420 | T31: =VLOOKUP(datos_mapa!K30,mapa!$V$4:$W$55,2,0) -> 7173369 | V31: 28 | W31: 8643839
F32: =datos_mapa!C2 -> Dato 1 | J32: Madrid | K32: madrid | L32: =+datos_mapa!C31 -> 19 | M32: =TEXT(datos_mapa!D31,"0,0%") -> 34,4% | N32: =TEXT(datos_mapa!E31,"0,0%") -> 34,4% | O32: =TEXT(datos_mapa!F31,"0,0%") -> 0,3% | Q32: =VLOOKUP(datos_mapa!H31,mapa!$V$4:$W$55,2,0) -> 7975420 | R32: =+VLOOKUP(datos_mapa!I31,mapa!$V$4:$W$55,2,0) -> 8443390 | S32: =VLOOKUP(datos_mapa!J31,mapa!$V$4:$W$55,2,0) -> 8578019 | T32: =VLOOKUP(datos_mapa!K31,mapa!$V$4:$W$55,2,0) -> 8309502 | V32: 29 | W32: 8577023
D33: 1 | F33: =datos_mapa!D2 -> Dato 2 | J33: Málaga | K33: malaga | L33: =+datos_mapa!C32 -> 37 | M33: =TEXT(datos_mapa!D32,"0,0%") -> 40,4% | N33: =TEXT(datos_mapa!E32,"0,0%") -> 40,4% | O33: =TEXT(datos_mapa!F32,"0,0%") -> -10,3% | Q33: =VLOOKUP(datos_mapa!H32,mapa!$V$4:$W$55,2,0) -> 8578019 | R33: =+VLOOKUP(datos_mapa!I32,mapa!$V$4:$W$55,2,0) -> 8645371 | S33: =VLOOKUP(datos_mapa!J32,mapa!$V$4:$W$55,2,0) -> 8710655 | T33: =VLOOKUP(datos_mapa!K32,mapa!$V$4:$W$55,2,0) -> 8243335 | V33: 30 | W33: 8510207
F34: =datos_mapa!E2 -> Dato 3 | J34: Murcia | K34: murcia | L34: =+datos_mapa!C33 -> 13 | M34: =TEXT(datos_mapa!D33,"0,0%") -> 68,3% | N34: =TEXT(datos_mapa!E33,"0,0%") -> 68,3% | O34: =TEXT(datos_mapa!F33,"0,0%") -> -5,4% | Q34: =VLOOKUP(datos_mapa!H33,mapa!$V$4:$W$55,2,0) -> 7707899 | R34: =+VLOOKUP(datos_mapa!I33,mapa!$V$4:$W$55,2,0) -> 8510667 | S34: =VLOOKUP(datos_mapa!J33,mapa!$V$4:$W$55,2,0) -> 8175869 | T34: =VLOOKUP(datos_mapa!K33,mapa!$V$4:$W$55,2,0) -> 8511447 | V34: 31 | W34: 8443390
F35: =datos_mapa!F2 -> Dato 4 | J35: Navarra | K35: navarra | L35: =+datos_mapa!C34 -> 38 | M35: =TEXT(datos_mapa!D34,"0,0%") -> 77,2% | N35: =TEXT(datos_mapa!E34,"0,0%") -> 77,2% | O35: =TEXT(datos_mapa!F34,"0,0%") -> 10,0% | Q35: =VLOOKUP(datos_mapa!H34,mapa!$V$4:$W$55,2,0) -> 8510667 | R35: =+VLOOKUP(datos_mapa!I34,mapa!$V$4:$W$55,2,0) -> 8311206 | S35: =VLOOKUP(datos_mapa!J34,mapa!$V$4:$W$55,2,0) -> 7774972 | T35: =VLOOKUP(datos_mapa!K34,mapa!$V$4:$W$55,2,0) -> 7240185 | V35: 32 | W35: 8376318
J36: Orense | K36: orense | L36: =+datos_mapa!C35 -> 46 | M36: =TEXT(datos_mapa!D35,"0,0%") -> 26,4% | N36: =TEXT(datos_mapa!E35,"0,0%") -> 26,4% | O36: =TEXT(datos_mapa!F35,"0,0%") -> 2,1% | Q36: =VLOOKUP(datos_mapa!H35,mapa!$V$4:$W$55,2,0) -> 8244371 | R36: =+VLOOKUP(datos_mapa!I35,mapa!$V$4:$W$55,2,0) -> 8309502 | S36: =VLOOKUP(datos_mapa!J35,mapa!$V$4:$W$55,2,0) -> 8511447 | T36: =VLOOKUP(datos_mapa!K35,mapa!$V$4:$W$55,2,0) -> 8042237 | V36: 33 | W36: 8309502
J37: Palencia | K37: palencia | L37: =+datos_mapa!C36 -> 47 | M37: =TEXT(datos_mapa!D36,"0,0%") -> 4,1% | N37: =TEXT(datos_mapa!E36,"0,0%") -> 4,1% | O37: =TEXT(datos_mapa!F36,"0,0%") -> 8,3% | Q37: =VLOOKUP(datos_mapa!H36,mapa!$V$4:$W$55,2,0) -> 8243853 | R37: =+VLOOKUP(datos_mapa!I36,mapa!$V$4:$W$55,2,0) -> 7373818 | S37: =VLOOKUP(datos_mapa!J36,mapa!$V$4:$W$55,2,0) -> 8177281 | T37: =VLOOKUP(datos_mapa!K36,mapa!$V$4:$W$55,2,0) -> 7507450 | V37: 34 | W37: 8242685
J38: Las Palmas | K38: las_palmas | L38: =+datos_mapa!C37 -> 38 | M38: =TEXT(datos_mapa!D37,"0,0%") -> 40,4% | N38: =TEXT(datos_mapa!E37,"0,0%") -> 40,4% | O38: =TEXT(datos_mapa!F37,"0,0%") -> -4,4% | Q38: =VLOOKUP(datos_mapa!H37,mapa!$V$4:$W$55,2,0) -> 8510667 | R38: =+VLOOKUP(datos_mapa!I37,mapa!$V$4:$W$55,2,0) -> 8710655 | S38: =VLOOKUP(datos_mapa!J37,mapa!$V$4:$W$55,2,0) -> 8645371 | T38: =VLOOKUP(datos_mapa!K37,mapa!$V$4:$W$55,2,0) -> 8644853 | V38: 35 | W38: 8175869
J39: Pontevedra | K39: pontevedra | L39: =+datos_mapa!C38 -> 45 | M39: =TEXT(datos_mapa!D38,"0,0%") -> 21,1% | N39: =TEXT(datos_mapa!E38,"0,0%") -> 21,1% | O39: =TEXT(datos_mapa!F38,"0,0%") -> 9,2% | Q39: =VLOOKUP(datos_mapa!H38,mapa!$V$4:$W$55,2,0) -> 8310688 | R39: =+VLOOKUP(datos_mapa!I38,mapa!$V$4:$W$55,2,0) -> 8109053 | S39: =VLOOKUP(datos_mapa!J38,mapa!$V$4:$W$55,2,0) -> 8444612 | T39: =VLOOKUP(datos_mapa!K38,mapa!$V$4:$W$55,2,0) -> 7440634 | V39: 36 | W39: 8109053
J40: La Rioja | K40: la_rioja | L40: =+datos_mapa!C39 -> 33 | M40: =TEXT(datos_mapa!D39,"0,0%") -> 54,9% | N40: =TEXT(datos_mapa!E39,"0,0%") -> 54,9% | O40: =TEXT(datos_mapa!F39,"0,0%") -> 6,7% | Q40: =VLOOKUP(datos_mapa!H39,mapa!$V$4:$W$55,2,0) -> 8710655 | R40: =+VLOOKUP(datos_mapa!I39,mapa!$V$4:$W$55,2,0) -> 8644335 | S40: =VLOOKUP(datos_mapa!J39,mapa!$V$4:$W$55,2,0) -> 8577023 | T40: =VLOOKUP(datos_mapa!K39,mapa!$V$4:$W$55,2,0) -> 7641083 | V40: 37 | W40: 8042237
J41: Salamanca | K41: salamanca | L41: =+datos_mapa!C40 -> 9 | M41: =TEXT(datos_mapa!D40,"0,0%") -> 57,8% | N41: =TEXT(datos_mapa!E40,"0,0%") -> 57,8% | O41: =TEXT(datos_mapa!F40,"0,0%") -> -4,0% | Q41: =VLOOKUP(datos_mapa!H40,mapa!$V$4:$W$55,2,0) -> 7507450 | R41: =+VLOOKUP(datos_mapa!I40,mapa!$V$4:$W$55,2,0) -> 8578019 | S41: =VLOOKUP(datos_mapa!J40,mapa!$V$4:$W$55,2,0) -> 8443390 | T41: =VLOOKUP(datos_mapa!K40,mapa!$V$4:$W$55,2,0) -> 8645371 | V41: 38 | W41: 7975420
J42: Segovia | K42: segovia | L42: =+datos_mapa!C41 -> 11 | M42: =TEXT(datos_mapa!D41,"0,0%") -> 15,1% | N42: =TEXT(datos_mapa!E41,"0,0%") -> 15,1% | O42: =TEXT(datos_mapa!F41,"0,0%") -> -2,1% | Q42: =VLOOKUP(datos_mapa!H41,mapa!$V$4:$W$55,2,0) -> 7574267 | R42: =+VLOOKUP(datos_mapa!I41,mapa!$V$4:$W$55,2,0) -> 7841788 | S42: =VLOOKUP(datos_mapa!J41,mapa!$V$4:$W$55,2,0) -> 8377260 | T42: =VLOOKUP(datos_mapa!K41,mapa!$V$4:$W$55,2,0) -> 8510207 | V42: 39 | W42: 7908604
J43: Sevilla | K43: sevilla | L43: =+datos_mapa!C42 -> 50 | M43: =TEXT(datos_mapa!D42,"0,0%") -> 18,9% | N43: =TEXT(datos_mapa!E42,"0,0%") -> 18,9% | O43: =TEXT(datos_mapa!F42,"0,0%") -> -9,5% | Q43: =VLOOKUP(datos_mapa!H42,mapa!$V$4:$W$55,2,0) -> 8109667 | R43: =+VLOOKUP(datos_mapa!I42,mapa!$V$4:$W$55,2,0) -> 8042237 | S43: =VLOOKUP(datos_mapa!J42,mapa!$V$4:$W$55,2,0) -> 8444094 | T43: =VLOOKUP(datos_mapa!K42,mapa!$V$4:$W$55,2,0) -> 8244371 | V43: 40 | W43: 7841788
J44: Soria | K44: soria | L44: =+datos_mapa!C43 -> 39 | M44: =TEXT(datos_mapa!D43,"0,0%") -> 14,5% | N44: =TEXT(datos_mapa!E43,"0,0%") -> 14,5% | O44: =TEXT(datos_mapa!F43,"0,0%") -> -4,5% | Q44: =VLOOKUP(datos_mapa!H43,mapa!$V$4:$W$55,2,0) -> 8378040 | R44: =+VLOOKUP(datos_mapa!I43,mapa!$V$4:$W$55,2,0) -> 7774972 | S44: =VLOOKUP(datos_mapa!J43,mapa!$V$4:$W$55,2,0) -> 8311206 | T44: =VLOOKUP(datos_mapa!K43,mapa!$V$4:$W$55,2,0) -> 8644335 | V44: 41 | W44: 7774972
J45: Tarragona | K45: tarragona | L45: =+datos_mapa!C44 -> 46 | M45: =TEXT(datos_mapa!D44,"0,0%") -> 40,1% | N45: =TEXT(datos_mapa!E44,"0,0%") -> 40,1% | O45: =TEXT(datos_mapa!F44,"0,0%") -> -2,4% | Q45: =VLOOKUP(datos_mapa!H44,mapa!$V$4:$W$55,2,0) -> 8244371 | R45: =+VLOOKUP(datos_mapa!I44,mapa!$V$4:$W$55,2,0) -> 8643839 | S45: =VLOOKUP(datos_mapa!J44,mapa!$V$4:$W$55,2,0) -> 8644853 | T45: =VLOOKUP(datos_mapa!K44,mapa!$V$4:$W$55,2,0) -> 8577023 | V45: 42 | W45: 7707899
J46: Santa Cruz de Tenerife | K46: tenerife | L46: =+datos_mapa!C45 -> 13 | M46: =TEXT(datos_mapa!D45,"0,0%") -> 3,5% | N46: =TEXT(datos_mapa!E45,"0,0%") -> 3,5% | O46: =TEXT(datos_mapa!F45,"0,0%") -> -9,4% | Q46: =VLOOKUP(datos_mapa!H45,mapa!$V$4:$W$55,2,0) -> 7707899 | R46: =+VLOOKUP(datos_mapa!I45,mapa!$V$4:$W$55,2,0) -> 7173369 | S46: =VLOOKUP(datos_mapa!J45,mapa!$V$4:$W$55,2,0) -> 8110447 | T46: =VLOOKUP(datos_mapa!K45,mapa!$V$4:$W$55,2,0) -> 8310688 | V46: 43 | W46: 7641083
J47: Teruel | K47: teruel | L47: =+datos_mapa!C46 -> 49 | M47: =TEXT(datos_mapa!D46,"0,0%") -> 42,6% | N47: =TEXT(datos_mapa!E46,"0,0%") -> 42,6% | O47: =TEXT(datos_mapa!F46,"0,0%") -> -5,4% | Q47: =VLOOKUP(datos_mapa!H46,mapa!$V$4:$W$55,2,0) -> 8110447 | R47: =+VLOOKUP(datos_mapa!I46,mapa!$V$4:$W$55,2,0) -> 8644853 | S47: =VLOOKUP(datos_mapa!J46,mapa!$V$4:$W$55,2,0) -> 8643839 | T47: =VLOOKUP(datos_mapa!K46,mapa!$V$4:$W$55,2,0) -> 8510929 | V47: 44 | W47: 7574267
J48: Toledo | K48: toledo | L48: =+datos_mapa!C47 -> 38 | M48: =TEXT(datos_mapa!D47,"0,0%") -> 6,4% | N48: =TEXT(datos_mapa!E47,"0,0%") -> 6,4% | O48: =TEXT(datos_mapa!F47,"0,0%") -> -8,6% | Q48: =VLOOKUP(datos_mapa!H47,mapa!$V$4:$W$55,2,0) -> 8510667 | R48: =+VLOOKUP(datos_mapa!I47,mapa!$V$4:$W$55,2,0) -> 7574267 | S48: =VLOOKUP(datos_mapa!J47,mapa!$V$4:$W$55,2,0) -> 8244371 | T48: =VLOOKUP(datos_mapa!K47,mapa!$V$4:$W$55,2,0) -> 8311206 | V48: 45 | W48: 7507450
J49: Valencia | K49: valencia | L49: =+datos_mapa!C48 -> 24 | M49: =TEXT(datos_mapa!D48,"0,0%") -> 74,4% | N49: =TEXT(datos_mapa!E48,"0,0%") -> 74,4% | O49: =TEXT(datos_mapa!F48,"0,0%") -> -6,5% | Q49: =VLOOKUP(datos_mapa!H48,mapa!$V$4:$W$55,2,0) -> 8175869 | R49: =+VLOOKUP(datos_mapa!I48,mapa!$V$4:$W$55,2,0) -> 8377522 | S49: =VLOOKUP(datos_mapa!J48,mapa!$V$4:$W$55,2,0) -> 7908604 | T49: =VLOOKUP(datos_mapa!K48,mapa!$V$4:$W$55,2,0) -> 8444612 | V49: 46 | W49: 7440634
J50: Valladolid | K50: valladolid | L50: =+datos_mapa!C49 -> 29 | M50: =TEXT(datos_mapa!D49,"0,0%") -> 91,8% | N50: =TEXT(datos_mapa!E49,"0,0%") -> 91,8% | O50: =TEXT(datos_mapa!F49,"0,0%") -> 2,6% | Q50: =VLOOKUP(datos_mapa!H49,mapa!$V$4:$W$55,2,0) -> 8376318 | R50: =+VLOOKUP(datos_mapa!I49,mapa!$V$4:$W$55,2,0) -> 8110447 | S50: =VLOOKUP(datos_mapa!J49,mapa!$V$4:$W$55,2,0) -> 7173369 | T50: =VLOOKUP(datos_mapa!K49,mapa!$V$4:$W$55,2,0) -> 7975420 | V50: 47 | W50: 7373818
J51: Vizcaya | K51: vizcaya | L51: =+datos_mapa!C50 -> 45 | M51: =TEXT(datos_mapa!D50,"0,0%") -> 95,4% | N51: =TEXT(datos_mapa!E50,"0,0%") -> 95,4% | O51: =TEXT(datos_mapa!F50,"0,0%") -> 15,9% | Q51: =VLOOKUP(datos_mapa!H50,mapa!$V$4:$W$55,2,0) -> 8310688 | R51: =+VLOOKUP(datos_mapa!I50,mapa!$V$4:$W$55,2,0) -> 8109667 | S51: =VLOOKUP(datos_mapa!J50,mapa!$V$4:$W$55,2,0) -> 7039480 | T51: =VLOOKUP(datos_mapa!K50,mapa!$V$4:$W$55,2,0) -> 7039480 | V51: 48 | W51: 7307002
J52: Zamora | K52: zamora | L52: =+datos_mapa!C51 -> 7 | M52: =TEXT(datos_mapa!D51,"0,0%") -> 28,3% | N52: =TEXT(datos_mapa!E51,"0,0%") -> 28,3% | O52: =TEXT(datos_mapa!F51,"0,0%") -> 4,0% | Q52: =VLOOKUP(datos_mapa!H51,mapa!$V$4:$W$55,2,0) -> 7373818 | R52: =+VLOOKUP(datos_mapa!I51,mapa!$V$4:$W$55,2,0) -> 8376318 | S52: =VLOOKUP(datos_mapa!J51,mapa!$V$4:$W$55,2,0) -> 8577501 | T52: =VLOOKUP(datos_mapa!K51,mapa!$V$4:$W$55,2,0) -> 7841788 | V52: 49 | W52: 7240185
J53: Zaragoza | K53: zaragoza | L53: =+datos_mapa!C52 -> 33 | M53: =TEXT(datos_mapa!D52,"0,0%") -> 74,9% | N53: =TEXT(datos_mapa!E52,"0,0%") -> 74,9% | O53: =TEXT(datos_mapa!F52,"0,0%") -> 13,8% | Q53: =VLOOKUP(datos_mapa!H52,mapa!$V$4:$W$55,2,0) -> 8710655 | R53: =+VLOOKUP(datos_mapa!I52,mapa!$V$4:$W$55,2,0) -> 8377260 | S53: =VLOOKUP(datos_mapa!J52,mapa!$V$4:$W$55,2,0) -> 7841788 | T53: =VLOOKUP(datos_mapa!K52,mapa!$V$4:$W$55,2,0) -> 7106553 | V53: 50 | W53: 7173369
J54: Ceuta | K54: ceuta | L54: =+datos_mapa!C53 -> 4 | M54: =TEXT(datos_mapa!D53,"0,0%") -> 59,4% | N54: =TEXT(datos_mapa!E53,"0,0%") -> 59,4% | O54: =TEXT(datos_mapa!F53,"0,0%") -> -27,3% | Q54: =VLOOKUP(datos_mapa!H53,mapa!$V$4:$W$55,2,0) -> 7173369 | R54: =+VLOOKUP(datos_mapa!I53,mapa!$V$4:$W$55,2,0) -> 8577501 | S54: =VLOOKUP(datos_mapa!J53,mapa!$V$4:$W$55,2,0) -> 8376318 | T54: =VLOOKUP(datos_mapa!K53,mapa!$V$4:$W$55,2,0) -> 8109929 | V54: 51 | W54: 7106553
J55: Melilla | K55: melilla | L55: =+datos_mapa!C54 -> 28 | M55: =TEXT(datos_mapa!D54,"0,0%") -> 82,4% | N55: =TEXT(datos_mapa!E54,"0,0%") -> 82,4% | O55: =TEXT(datos_mapa!F54,"0,0%") -> -27,3% | Q55: =VLOOKUP(datos_mapa!H54,mapa!$V$4:$W$55,2,0) -> 8309502 | R55: =+VLOOKUP(datos_mapa!I54,mapa!$V$4:$W$55,2,0) -> 8310170 | S55: =VLOOKUP(datos_mapa!J54,mapa!$V$4:$W$55,2,0) -> 7641083 | T55: =VLOOKUP(datos_mapa!K54,mapa!$V$4:$W$55,2,0) -> 8109929 | V55: 52 | W55: 7039480
